Workbook

Sheet Control
E6: PS actual power
E7: T-Former: 935 W
E8: Ferro: 987 W

Sheet AUX2 (hidden)
A1: ='Net42'!B1+'Net41'!B1+'Net32'!B1+'Net31'!B1+'Net22'!B1+'Net21'!B1+'Net12'!B1+'Net11'!B1+SUM(A7:A18) -> 0 | B1: Vtriac(vba) | C1: 1.5 | D1: =+'Net11'!D1+'Net12'!D1+'Net21'!D1+'Net22'!D1+'Net31'!D1+'Net32'!D1+'Net41'!D1+'Net42'!D1 -> 0 | S1: 66 | T1: 66V | U1: V0 | V1: 1
C2: =+C5*1 -> 66 | J2: m | S2: 61.80212938 | T2: 61,8V | U2: V01 | V2: 2
J3: ft | S3: 62.21714531 | T3: 62,2V | U3: V02 | V3: 3
D4: V | E4: m | F4: i temp | G4: i | H4: drop | I4: k | J4: dist | K4: L | L4: cable | M4: Vinput | N4: 0.0001 | S4: 63.09199797 | T4: 63,1V | U4: V03 | V4: 4
A5: PS - Imax Vout | B5: 15 | C5: 66 | D5: V | E5: - | F5: A | G5: A | H5: V | I5: - | J5: m | K5: km | M5: V | N5: accuracy | S5: 63.09193152 | T5: 63,1V | U5: V04 | V5: 5
A6: Vmin amp. | B6: 44 | C6: =IF(C2=60,66,90) -> 90 | D6: 63.09199797 | N6: =ABS(SUM(N7:N14)) -> 1.072430599e-05 | S6: 2.01542312 | T6: 2A | U6: I01 | V6: 6
A7: =IF(D7<0,1,0) -> 0 | B7: 7 | C7: 11 | D7: =+D15-H7 -> 61.80212938 | E7: 1 | F7: =+'Net11'!D2 -> 1.005579499 | G7: =+F7*E7 -> 1.005579499 | H7: =+G7*K7*VLOOKUP(L7,specs!$K$5:$L$19,2) -> 0 | I7: 1 | J7: 0 | K7: =+IF($J$5="m",J7,(J7*0.3048))/1000*I7 -> 0 | L7: cable | M7: 61.80213258 | N7: =E7*(+M7-D7) -> 3.199107411e-06 | S7: 3.012578037 | T7: 3A | U7: I02 | V7: 7
A8: 0 | B8: 8 | C8: 12 | D8: =+D15-H8 -> 61.80212938 | E8: 1 | F8: =+'Net12'!D2 -> 1.009843621 | G8: =+F8*E8 -> 1.009843621 | H8: =+G8*K8*VLOOKUP(L8,specs!$K$5:$L$19,2) -> 0 | I8: 1 | J8: 0 | K8: =+IF($J$5="m",J8,(J8*0.3048))/1000*I8 -> 0 | L8: cable | M8: 61.80213258 | N8: =E8*(+M8-D8) -> 3.199107411e-06 | S8: 6.245397936 | T8: 6,2A | U8: I03 | V8: 8
A9: 0 | B9: 9 | C9: 21 | D9: =+D16-H9 -> 62.21714531 | E9: 1 | F9: =+'Net21'!D2 -> 0.4986939054 | G9: 0.4986939054 | H9: =+G9*K9*VLOOKUP(L9,specs!$K$5:$L$19,2) -> 0 | I9: 1 | J9: 0 | K9: 0 | L9: cable | M9: 62.21714747 | N9: 2.163045586e-06 | S9: 13.34611452 | T9: 13,3A | U9: I04 | V9: 9
A10: 0 | B10: 10 | C10: 22 | D10: =+D16-H10 -> 62.21714531 | E10: 1 | F10: =+'Net22'!D2 -> 0.4984610113 | G10: 0.4984610113 | H10: =+G10*K10*VLOOKUP(L10,specs!$K$5:$L$19,2) -> 0 | I10: 1 | J10: 0 | K10: 0 | L10: cable | M10: 62.21714747 | N10: 2.163045586e-06 | S10: 61.80212938 | T10: 61,8V | U10: V11 | V10: 10
A11: 0 | B11: 11 | C11: 31 | D11: =+D17-H11 -> 63.09199797 | E11: 1 | F11: =+'Net31'!D2 -> 0.4969959128 | G11: 0.4969959128 | H11: =+G11*K11*VLOOKUP(L11,specs!$K$5:$L$19,2) -> 0 | I11: 1 | J11: 0 | K11: 0 | L11: cable | M11: 63.09199797 | N11: 0 | S11: 61.80212938 | T11: 61,8V | U11: V12 | V11: 11
A12: 0 | B12: 12 | C12: 32 | D12: =+D17-H12 -> 63.09199797 | E12: 1 | F12: =+'Net32'!D2 -> 2.735823986 | G12: 2.735823986 | H12: =+G12*K12*VLOOKUP(L12,specs!$K$5:$L$19,2) -> 0 | I12: 1 | J12: 0 | K12: 0 | L12: cable | M12: 63.09199797 | N12: 0 | S12: 62.21714531 | T12: 62,2V | U12: V21 | V12: 12
A13: 0 | B13: 13 | C13: 41 | D13: =+D18-H13 -> 63.09199797 | E13: 1 | F13: =+'Net41'!D2 -> 0.9960635952 | G13: 0.9960635952 | H13: =+G13*K13*VLOOKUP(L13,specs!$K$5:$L$19,2) -> 0 | I13: 1 | J13: 0 | K13: 0 | L13: cable | M13: 63.09199797 | N13: 0 | S13: 62.21714531 | T13: 62,2V | U13: V22 | V13: 13
A14: 0 | B14: 14 | C14: 42 | D14: =+D18-H14 -> 63.09199797 | E14: 1 | F14: =+'Net42'!D2 -> 2.340627728 | G14: 2.340627728 | H14: =+G14*K14*VLOOKUP(L14,specs!$K$5:$L$19,2) -> 0 | I14: 1 | J14: 0 | K14: 0 | L14: cable | M14: 63.09199797 | N14: 0 | S14: 63.09199797 | T14: 63,1V | U14: V31 | V14: 14
A15: =IF(D15<0,1,0) -> 0 | B15: 15 | C15: 01 | D15: =+D16-H15 -> 61.80212938 | E15: 1 | F15: =SUM(F7:F8) -> 2.01542312 | G15: =+F15*E15 -> 2.01542312 | H15: =+G15*K15*VLOOKUP(L15,specs!$K$5:$L$19,2) -> 0.4150159289 | I15: 1 | J15: 39 | K15: =+IF($J$5="m",J15,(J15*0.3048))/1000*I15 -> 0.039 | L15: QR540 | M15: =K15*VLOOKUP(L15,specs!$K$5:$L$19,2) -> 0.20592 | S15: 63.09199797 | T15: 63,1V | U15: V32 | V15: 15
A16: =IF(D16<0,1,0) -> 0 | B16: 16 | C16: 02 | D16: =+D17-H16 -> 62.21714531 | E16: 1 | F16: =SUM(F7:F10) -> 3.012578037 | G16: =+F16*E16 -> 3.012578037 | H16: =+G16*K16*VLOOKUP(L16,specs!$K$5:$L$19,2) -> 0.8748526619 | I16: 1 | J16: 55 | K16: =+IF($J$5="m",J16,(J16*0.3048))/1000*I16 -> 0.055 | L16: QR540 | M16: =K16*VLOOKUP(L16,specs!$K$5:$L$19,2) -> 0.2904 | S16: 63.09199797 | T16: 63,1V | U16: V41 | V16: 16
A17: =IF(D17<0,1,0) -> 0 | B17: 17 | C17: 03 | D17: =+D18-H17 -> 63.09199797 | E17: 1 | F17: =SUM(F7:F12) -> 6.245397936 | G17: =+F17*E17 -> 6.245397936 | H17: =+G17*K17*VLOOKUP(L17,specs!$K$5:$L$19,2) -> 0 | I17: 1 | J17: 0 | K17: =+IF($J$5="m",J17,(J17*0.3048))/1000*I17 -> 0 | L17: cable | M17: =K17*VLOOKUP(L17,specs!$K$5:$L$19,2) -> 0 | S17: 63.09199797 | T17: 63,1V | U17: V42 | V17: 17
A18: =IF(D18<0,1,0) -> 0 | B18: 18 | C18: 04 | D18: =+D6-H18 -> 63.09199797 | E18: 0 | F18: =SUM(F7:F14) -> 9.58208926 | G18: =+F18*E18 -> 0 | H18: =+G18*K18*VLOOKUP(L18,specs!$K$5:$L$19,2) -> 0 | I18: 1 | J18: 600 | K18: =+IF($J$5="m",J18,(J18*0.3048))/1000*I18 -> 0.6 | L18: QR860 | M18: =K18*VLOOKUP(L18,specs!$K$5:$L$19,2) -> 1.422 | S18: 1.005579499 | T18: 1A | U18: I11 | V18: 18
H19: D6:L18 | S19: 1.009843621 | T19: 1A | U19: I12 | V19: 19
S20: 0.4986939054 | T20: 0,5A | U20: I21 | V20: 20
B21: Booster Data | S21: 0.4984610113 | T21: 0,5A | U21: I22 | V21: 21
C22: vba | D22: vba | E22: vba | S22: 0.4969959128 | T22: 0,5A | U22: I31 | V22: 22
A23: Vin | B23: Ranges | C23: Mcont | D23: TrEff | E23: Bgain | F23: Vout | G23: Pin | H23: Iin | I23: Final Gain | J23: Efficiency | K23: P-triac | L23: P-transformer | M23: Pout | N23: Iout | S23: 2.735823986 | T23: 2,7A | U23: I32 | V23: 23
A24: 62 | B24: 57.5-66 | C24: 1 | D24: 97 | E24: 1.033 | F24: =A24*E24/C24-1.5 -> 62.546 | G24: =M24+L24+K24 -> 204.9944698 | H24: =G24/A24 -> 3.306362416 | I24: =F24/A24 -> 1.008806452 | J24: =M24/G24 -> 0.9756360754 | K24: =N24*1.5 -> 4.796469798 | L24: =M24*(E24-1)*0.03 -> 0.198 | M24: 200 | N24: =M24/F24 -> 3.197646532 | S24: 0.9960635952 | T24: 1A | U24: I41 | V24: 24
A25: 57.5 | B25: 49.9-57.5 | C25: 1.025 | D25: 96.8 | E25: 1.211 | F25: =A25*E25/C25-1.5 -> 66.43414634 | G25: =M25+L25+K25 -> 205.8661501 | H25: =G25/A25 -> 3.580280871 | I25: =F25/A25 -> 1.155376458 | J25: =M25/G25 -> 0.9715050286 | K25: =N25*1.5 -> 4.515750055 | L25: =M25*(E25-1)*0.032 -> 1.3504 | M25: 200 | N25: =M25/F25 -> 3.010500037 | S25: 2.340627728 | T25: 2,3A | U25: I42 | V25: 25
A26: 49.9 | B26: 0-49.9 | C26: 1.025 | D26: 96.5 | E26: 1.408 | F26: =A26*E26/C26-1.5 -> 67.04556098 | G26: =M26+L26+K26 -> 207.3305692 | H26: =G26/A26 -> 4.154921226 | I26: =F26/A26 -> 1.343598416 | J26: =M26/G26 -> 0.9646430857 | K26: =N26*1.5 -> 4.474569168 | L26: =M26*(E26-1)*0.035 -> 2.856 | M26: 200 | N26: =M26/F26 -> 2.983046112 | S26: 61.26197947 | T26: 61,3V | U26: Vend11 | V26: 26
S27: 61.05229862 | T27: 61,1V | U27: Vend12 | V27: 27
S28: 61.96185609 | T28: 62V | U28: Vend21 | V28: 28
A29: Vin | F29: Vout | G29: Pin | H29: Iin | J29: Efficiency | K29: P-triac | L29: P-transformer | M29: Pout | N29: Iout | S29: 61.9908063 | T29: 62V | U29: Vend22 | V29: 29
A30: 83 | B30: 74.9-90 | C30: 1 | D30: 97 | E30: 1.048 | F30: =A30*E30/C30-1.5 -> 85.484 | G30: =M30+L30+K30 -> 203.7974287 | H30: =G30/A30 -> 2.455390707 | I30: =F30/A30 -> 1.029927711 | J30: =M30/G30 -> 0.9813666507 | K30: =N30*1.5 -> 3.509428665 | L30: =M30*(E30-1)*0.03 -> 0.288 | M30: 200 | N30: =M30/F30 -> 2.33961911 | S30: 62.17354952 | T30: 62,2V | U30: Vend31 | V30: 30
A31: 74.9 | B31: 62-74.9 | C31: 1.025 | D31: 96.8 | E31: 1.279 | F31: =A31*E31/C31-1.5 -> 91.96058537 | G31: =M31+L31+K31 -> 205.0478672 | H31: =G31/A31 -> 2.737621725 | I31: =F31/A31 -> 1.227778176 | J31: =M31/G31 -> 0.9753820059 | K31: =N31*1.5 -> 3.262267186 | L31: =M31*(E31-1)*0.032 -> 1.7856 | M31: 200 | N31: =M31/F31 -> 2.17484479 | S31: 55.99865246 | T31: 56V | U31: Vend32 | V31: 31
A32: 61.9 | B32: 0-61.9 | C32: 1.025 | D32: 96.5 | E32: 1.538 | F32: =A32*E32/C32-1.5 -> 91.38019512 | G32: =M32+L32+K32 -> 207.0489871 | H32: =G32/A32 -> 3.344894783 | I32: =F32/A32 -> 1.476255172 | J32: =M32/G32 -> 0.9659549792 | K32: =N32*1.5 -> 3.282987081 | L32: =M32*(E32-1)*0.035 -> 3.766 | M32: 200 | N32: =M32/F32 -> 2.188658054 | S32: 61.76681317 | T32: 61,8V | U32: Vend41 | V32: 32
S33: 61.85080726 | T33: 61,9V | U33: Vend42 | V33: 33
A34: Pin = Pout + Ptriac + Pdelta-transformer, where | S34: 47.02182515 | T34: 47V | U34: PBVin | V34: 34
S35: 63.09193152 | T35: 63,1V | U35: PBVout | V35: 35
A36: Pout = Vout x Iout; | S36: 13.34611452 | T36: 13,3A | U36: PBcurin | V36: 36
S37: 9.58208926 | T37: 9,6A | U37: PBcurout | V37: 37
A38: Ptriac = Vtriac * Iout , where Vtriac=1.5V; | S38: 1.341758456 | T38: 1,34 | U38: Bgain | V38: 38
T39: PB Location I | U39: STitleLocation | V39: 39
A40: Pdelta-transformer = (100 - K) / 100 * (n – 1) * Pout , where K=96.5% for range"1.32" , K=96.8% for range "1.2" and K=97% for range "1" | T40: V in | U40: sTitleVin | V40: 40
T41: V out | U41: sTitleVout | V41: 41
A42: Then, assuming | T42: I in | U42: STitleIin | V42: 42
T43: I out | U43: sTitleIout | V43: 43
A44: Vout = Vin * n / Mcont – Vtriac , where Mcont = 1 for range"1", Mcont=1.025 for other two ranges; | T44: Gain | U44: sTitleGain | V44: 44
U45: time | V45: 45
A46: We get finally the booster input current Iin, derived from above, as a function of the booster output current Iout and the booster input voltage Vin: | S46: 16 | U46: cntext | V46: 46
S47: 1 | U47: cntloc | V47: 47
A48: Iin = Iout * n / Mcont * (1 + K / 100) * (n – 1) * [ 1 – Vtriac / (Vout + Vtriac) ]} | S48: 40 | U48: cntsum | V48: 48
U49: cntloc04 | V49: 49
U50: cntsum04 | V50: 50
U51: cntloc03 | V51: 51
U52: cntsum03 | V52: 52
U53: cntloc02 | V53: 53
U54: cntsum02 | V54: 54
E60: Efficiency | G60: tangens alpha
D61: Load,% | E61: Super2M-90 | F61: T-former | G61: Super2M-90 | H61: T-former | I61: load span | J61: SpanN
C62: L0 | D62: 4 | E62: 36.55806621 | F62: 62.08372093 | G62: =(E63-E62)/($D63-$D62) -> 4.260676312 | H62: =+(F63-F62)/($D63-$D62) -> 3.48933788 | I62: =+D63-D62 -> 4 | J62: 1
C63: L1 | D63: 8 | E63: 53.60077146 | F63: 76.04107245 | G63: 2.444555993 | H63: 1.576814017 | I63: 4 | J63: 2
C64: L2 | D64: 12 | E64: 63.37899543 | F64: 82.34832852 | G64: 1.445186705 | H64: 0.795816365 | I64: 8 | J64: 3
C65: L3 | D65: 20 | E65: 74.94048907 | F65: 88.71485944 | G65: 0.715539049 | H65: 0.271305184 | I65: 10 | J65: 4
C66: L4 | D66: 30 | E66: 82.09587956 | F66: 91.42791128 | G66: 0.484873774 | H66: 0.129423258 | I66: 10 | J66: 5
C67: L5 | D67: 40 | E67: 86.9446173 | F67: 92.72214386 | G67: 0.17963341 | H67: 0.111739769 | I67: 10 | J67: 6
C68: L6 | D68: 50 | E68: 88.7409514 | F68: 93.83954155 | G68: 0.112770009 | H68: 0.036879178 | I68: 10 | J68: 7
C69: L7 | D69: 60 | E69: 89.86865149 | F69: 94.20833333 | G69: 0.089180478 | H69: 0.038966667 | I69: 10 | J69: 8
C70: L8 | D70: 70 | E70: 90.76045627 | F70: 94.598 | G70: 0.051471152 | H70: -0.005637724 | I70: 10 | J70: 9
C71: L9 | D71: 80 | E71: 91.27516779 | F71: 94.54162276 | G71: 0.000400636 | H71: -0.03817227 | I71: 10 | J71: 10
C72: L10 | D72: 90 | E72: 91.27917415 | F72: 94.15990006 | G72: 0.036039225 | H72: -0.087130946 | I72: 10 | J72: 11
C73: L11 | D73: 100 | E73: 91.6395664 | F73: 93.2885906

Sheet Net42 (hidden)
B1: =SUM(F22:O22) -> 0 | D1: =IF(O21<'AUX2'!B6,1,0) -> 0 | E1: =+'AUX2'!J5 -> m
B2: =+'AUX2'!M14 -> 63.09199797 | C2: U start, V | D2: =+O5*1 -> 2.340627728 | F2: 1 | G2: 2 | H2: 3 | I2: 4 | J2: 5 | K2: 6 | L2: 7 | M2: 8 | N2: 9 | O2: iteration10
E3: mult. | F3: =F6+F5*F4 -> 64.30891765 | G3: =G6+G5*G4 -> 63.11578515 | H3: 63.09247218 | I3: 63.09200743 | J3: 63.09199816 | K3: 63.09199797 | L3: 63.09199797 | M3: 63.09199797 | N3: 63.09199797 | O3: 63.09199797
C4: cable type | D4: cable | E4: 0 | F4: =VLOOKUP($D4,specs!$K$5:$L$19,2)*IF($E$1="m",$D5,($D5*0.3048))/1000 -> 0 | G4: =VLOOKUP($D4,specs!$K$5:$L$19,2)*IF($E$1="m",$D5,($D5*0.3048))/1000 -> 0 | H4: =VLOOKUP($D4,specs!$K$5:$L$19,2)*IF($E$1="m",$D5,($D5*0.3048))/1000 -> 0 | I4: =VLOOKUP($D4,specs!$K$5:$L$19,2)*IF($E$1="m",$D5,($D5*0.3048))/1000 -> 0 | J4: =VLOOKUP($D4,specs!$K$5:$L$19,2)*IF($E$1="m",$D5,($D5*0.3048))/1000 -> 0 | K4: =VLOOKUP($D4,specs!$K$5:$L$19,2)*IF($E$1="m",$D5,($D5*0.3048))/1000 -> 0 | L4: =VLOOKUP($D4,specs!$K$5:$L$19,2)*IF($E$1="m",$D5,($D5*0.3048))/1000 -> 0 | M4: =VLOOKUP($D4,specs!$K$5:$L$19,2)*IF($E$1="m",$D5,($D5*0.3048))/1000 -> 0 | N4: =VLOOKUP($D4,specs!$K$5:$L$19,2)*IF($E$1="m",$D5,($D5*0.3048))/1000 -> 0 | O4: =VLOOKUP($D4,specs!$K$5:$L$19,2)*IF($E$1="m",$D5,($D5*0.3048))/1000 -> 0
C5: span length,m | D5: 0 | E5: 0 | F5: =VLOOKUP($D6,specs!$D$5:$H$17,4)/F6*1.03*$E6+F8 -> 2.295485171 | G5: =VLOOKUP($D6,specs!$D$5:$H$17,4)/G6*1.03*$E6+G8 -> 2.339728141 | H5: =VLOOKUP($D6,specs!$D$5:$H$17,4)/H6*1.03*$E6+H8 -> 2.340609788 | I5: =VLOOKUP($D6,specs!$D$5:$H$17,4)/I6*1.03*$E6+I8 -> 2.34062737 | J5: =VLOOKUP($D6,specs!$D$5:$H$17,4)/J6*1.03*$E6+J8 -> 2.340627721 | K5: =VLOOKUP($D6,specs!$D$5:$H$17,4)/K6*1.03*$E6+K8 -> 2.340627728 | L5: =VLOOKUP($D6,specs!$D$5:$H$17,4)/L6*1.03*$E6+L8 -> 2.340627728 | M5: =VLOOKUP($D6,specs!$D$5:$H$17,4)/M6*1.03*$E6+M8 -> 2.340627728 | N5: =VLOOKUP($D6,specs!$D$5:$H$17,4)/N6*1.03*$E6+N8 -> 2.340627728 | O5: =VLOOKUP($D6,specs!$D$5:$H$17,4)/O6*1.03*$E6+O8 -> 2.340627728
C6: amplifier | D6: TNA | E6: 1 | F6: =F9+F8*F7 -> 64.30891765 | G6: =G9+G8*G7 -> 63.11578515 | H6: 63.09247218 | I6: 63.09200743 | J6: 63.09199816 | K6: 63.09199797 | L6: 63.09199797 | M6: 63.09199797 | N6: 63.09199797 | O6: 63.09199797
C7: cable type | D7: QR540 | E7: 0 | F7: =VLOOKUP($D7,specs!$K$5:$L$19,2)*IF($E$1="m",$D8,($D8*0.3048))/1000 -> 0.46992 | G7: =VLOOKUP($D7,specs!$K$5:$L$19,2)*IF($E$1="m",$D8,($D8*0.3048))/1000 -> 0.46992 | H7: =VLOOKUP($D7,specs!$K$5:$L$19,2)*IF($E$1="m",$D8,($D8*0.3048))/1000 -> 0.46992 | I7: =VLOOKUP($D7,specs!$K$5:$L$19,2)*IF($E$1="m",$D8,($D8*0.3048))/1000 -> 0.46992 | J7: =VLOOKUP($D7,specs!$K$5:$L$19,2)*IF($E$1="m",$D8,($D8*0.3048))/1000 -> 0.46992 | K7: =VLOOKUP($D7,specs!$K$5:$L$19,2)*IF($E$1="m",$D8,($D8*0.3048))/1000 -> 0.46992 | L7: =VLOOKUP($D7,specs!$K$5:$L$19,2)*IF($E$1="m",$D8,($D8*0.3048))/1000 -> 0.46992 | M7: =VLOOKUP($D7,specs!$K$5:$L$19,2)*IF($E$1="m",$D8,($D8*0.3048))/1000 -> 0.46992 | N7: =VLOOKUP($D7,specs!$K$5:$L$19,2)*IF($E$1="m",$D8,($D8*0.3048))/1000 -> 0.46992 | O7: =VLOOKUP($D7,specs!$K$5:$L$19,2)*IF($E$1="m",$D8,($D8*0.3048))/1000 -> 0.46992
C8: span length,m | D8: 89 | E8: 0 | F8: =VLOOKUP($D9,specs!$D$5:$H$17,4)/F9*1.03*$E9+F11 -> 1.462630227 | G8: =VLOOKUP($D9,specs!$D$5:$H$17,4)/G9*1.03*$E9+G11 -> 1.491129017 | H8: =VLOOKUP($D9,specs!$D$5:$H$17,4)/H9*1.03*$E9+H11 -> 1.491697102 | I8: =VLOOKUP($D9,specs!$D$5:$H$17,4)/I9*1.03*$E9+I11 -> 1.491708431 | J8: =VLOOKUP($D9,specs!$D$5:$H$17,4)/J9*1.03*$E9+J11 -> 1.491708657 | K8: =VLOOKUP($D9,specs!$D$5:$H$17,4)/K9*1.03*$E9+K11 -> 1.491708662 | L8: =VLOOKUP($D9,specs!$D$5:$H$17,4)/L9*1.03*$E9+L11 -> 1.491708662 | M8: =VLOOKUP($D9,specs!$D$5:$H$17,4)/M9*1.03*$E9+M11 -> 1.491708662 | N8: =VLOOKUP($D9,specs!$D$5:$H$17,4)/N9*1.03*$E9+N11 -> 1.491708662 | O8: =VLOOKUP($D9,specs!$D$5:$H$17,4)/O9*1.03*$E9+O11 -> 1.491708662
C9: amplifier | D9: LEX | E9: 1 | F9: =F12+F11*F10 -> 63.62159845 | G9: =G12+G11*G10 -> 62.4150738 | H9: 62.39149388 | I9: 62.3910238 | J9: 62.39101443 | K9: 62.39101424 | L9: 62.39101424 | M9: 62.39101424 | N9: 62.39101424 | O9: 62.39101424
C10: cable type | D10: QR540 | E10: 0 | F10: =VLOOKUP($D10,specs!$K$5:$L$19,2)*IF($E$1="m",$D11,($D11*0.3048))/1000 -> 0.20064 | G10: =VLOOKUP($D10,specs!$K$5:$L$19,2)*IF($E$1="m",$D11,($D11*0.3048))/1000 -> 0.20064 | H10: =VLOOKUP($D10,specs!$K$5:$L$19,2)*IF($E$1="m",$D11,($D11*0.3048))/1000 -> 0.20064 | I10: =VLOOKUP($D10,specs!$K$5:$L$19,2)*IF($E$1="m",$D11,($D11*0.3048))/1000 -> 0.20064 | J10: =VLOOKUP($D10,specs!$K$5:$L$19,2)*IF($E$1="m",$D11,($D11*0.3048))/1000 -> 0.20064 | K10: =VLOOKUP($D10,specs!$K$5:$L$19,2)*IF($E$1="m",$D11,($D11*0.3048))/1000 -> 0.20064 | L10: =VLOOKUP($D10,specs!$K$5:$L$19,2)*IF($E$1="m",$D11,($D11*0.3048))/1000 -> 0.20064 | M10: =VLOOKUP($D10,specs!$K$5:$L$19,2)*IF($E$1="m",$D11,($D11*0.3048))/1000 -> 0.20064 | N10: =VLOOKUP($D10,specs!$K$5:$L$19,2)*IF($E$1="m",$D11,($D11*0.3048))/1000 -> 0.20064 | O10: =VLOOKUP($D10,specs!$K$5:$L$19,2)*IF($E$1="m",$D11,($D11*0.3048))/1000 -> 0.20064
C11: span length,m | D11: 38 | E11: 0 | F11: =VLOOKUP($D12,specs!$D$5:$H$17,4)/F12*1.03*$E12+F14 -> 0.976946108 | G11: =VLOOKUP($D12,specs!$D$5:$H$17,4)/G12*1.03*$E12+G14 -> 0.9960563022 | H11: =VLOOKUP($D12,specs!$D$5:$H$17,4)/H12*1.03*$E12+H14 -> 0.9964372823 | I11: =VLOOKUP($D12,specs!$D$5:$H$17,4)/I12*1.03*$E12+I14 -> 0.9964448803 | J11: =VLOOKUP($D12,specs!$D$5:$H$17,4)/J12*1.03*$E12+J14 -> 0.9964450319 | K11: =VLOOKUP($D12,specs!$D$5:$H$17,4)/K12*1.03*$E12+K14 -> 0.9964450349 | L11: =VLOOKUP($D12,specs!$D$5:$H$17,4)/L12*1.03*$E12+L14 -> 0.996445035 | M11: =VLOOKUP($D12,specs!$D$5:$H$17,4)/M12*1.03*$E12+M14 -> 0.996445035 | N11: =VLOOKUP($D12,specs!$D$5:$H$17,4)/N12*1.03*$E12+N14 -> 0.996445035 | O11: =VLOOKUP($D12,specs!$D$5:$H$17,4)/O12*1.03*$E12+O14 -> 0.996445035
C12: amplifier | D12: LEX | E12: 1 | F12: =F15+F14*F13 -> 63.42558398 | G12: =G15+G14*G13 -> 62.21522506 | H12: 62.1915687 | I12: 62.1910971 | J12: 62.1910877 | K12: 62.19108751 | L12: 62.1910875 | M12: 62.1910875 | N12: 62.1910875 | O12: 62.1910875
C13: cable type | D13: QR540 | E13: 0 | F13: =VLOOKUP($D13,specs!$K$5:$L$19,2)*IF($E$1="m",$D14,($D14*0.3048))/1000 -> 0.68112 | G13: =VLOOKUP($D13,specs!$K$5:$L$19,2)*IF($E$1="m",$D14,($D14*0.3048))/1000 -> 0.68112 | H13: =VLOOKUP($D13,specs!$K$5:$L$19,2)*IF($E$1="m",$D14,($D14*0.3048))/1000 -> 0.68112 | I13: =VLOOKUP($D13,specs!$K$5:$L$19,2)*IF($E$1="m",$D14,($D14*0.3048))/1000 -> 0.68112 | J13: =VLOOKUP($D13,specs!$K$5:$L$19,2)*IF($E$1="m",$D14,($D14*0.3048))/1000 -> 0.68112 | K13: =VLOOKUP($D13,specs!$K$5:$L$19,2)*IF($E$1="m",$D14,($D14*0.3048))/1000 -> 0.68112 | L13: =VLOOKUP($D13,specs!$K$5:$L$19,2)*IF($E$1="m",$D14,($D14*0.3048))/1000 -> 0.68112 | M13: =VLOOKUP($D13,specs!$K$5:$L$19,2)*IF($E$1="m",$D14,($D14*0.3048))/1000 -> 0.68112 | N13: =VLOOKUP($D13,specs!$K$5:$L$19,2)*IF($E$1="m",$D14,($D14*0.3048))/1000 -> 0.68112 | O13: =VLOOKUP($D13,specs!$K$5:$L$19,2)*IF($E$1="m",$D14,($D14*0.3048))/1000 -> 0.68112
C14: span length,m | D14: 129 | E14: 0 | F14: =VLOOKUP($D15,specs!$D$5:$H$17,4)/F15*1.03*$E15+F17 -> 0.4897609997 | G14: =VLOOKUP($D15,specs!$D$5:$H$17,4)/G15*1.03*$E15+G17 -> 0.4993933075 | H14: =VLOOKUP($D15,specs!$D$5:$H$17,4)/H15*1.03*$E15+H17 -> 0.4995853675 | I14: =VLOOKUP($D15,specs!$D$5:$H$17,4)/I15*1.03*$E15+I17 -> 0.4995891978 | J14: =VLOOKUP($D15,specs!$D$5:$H$17,4)/J15*1.03*$E15+J17 -> 0.4995892742 | K14: =VLOOKUP($D15,specs!$D$5:$H$17,4)/K15*1.03*$E15+K17 -> 0.4995892757 | L14: =VLOOKUP($D15,specs!$D$5:$H$17,4)/L15*1.03*$E15+L17 -> 0.4995892757 | M14: =VLOOKUP($D15,specs!$D$5:$H$17,4)/M15*1.03*$E15+M17 -> 0.4995892757 | N14: =VLOOKUP($D15,specs!$D$5:$H$17,4)/N15*1.03*$E15+N17 -> 0.4995892757 | O14: =VLOOKUP($D15,specs!$D$5:$H$17,4)/O15*1.03*$E15+O17 -> 0.4995892757
C15: amplifier | D15: LEX | E15: 1 | F15: =F18+F17*F16 -> 63.09199797 | G15: =G18+G17*G16 -> 61.87507829 | H15: 61.85129112 | I15: 61.85081691 | J15: 61.85080745 | K15: 61.85080726 | L15: 61.85080726 | M15: 61.85080726 | N15: 61.85080726 | O15: 61.85080726
C16: cable type | D16: cable | E16: 0 | F16: =VLOOKUP($D16,specs!$K$5:$L$19,2)*IF($E$1="m",$D17,($D17*0.3048))/1000 -> 0 | G16: =VLOOKUP($D16,specs!$K$5:$L$19,2)*IF($E$1="m",$D17,($D17*0.3048))/1000 -> 0 | H16: =VLOOKUP($D16,specs!$K$5:$L$19,2)*IF($E$1="m",$D17,($D17*0.3048))/1000 -> 0 | I16: =VLOOKUP($D16,specs!$K$5:$L$19,2)*IF($E$1="m",$D17,($D17*0.3048))/1000 -> 0 | J16: =VLOOKUP($D16,specs!$K$5:$L$19,2)*IF($E$1="m",$D17,($D17*0.3048))/1000 -> 0 | K16: =VLOOKUP($D16,specs!$K$5:$L$19,2)*IF($E$1="m",$D17,($D17*0.3048))/1000 -> 0 | L16: =VLOOKUP($D16,specs!$K$5:$L$19,2)*IF($E$1="m",$D17,($D17*0.3048))/1000 -> 0 | M16: =VLOOKUP($D16,specs!$K$5:$L$19,2)*IF($E$1="m",$D17,($D17*0.3048))/1000 -> 0 | N16: =VLOOKUP($D16,specs!$K$5:$L$19,2)*IF($E$1="m",$D17,($D17*0.3048))/1000 -> 0 | O16: =VLOOKUP($D16,specs!$K$5:$L$19,2)*IF($E$1="m",$D17,($D17*0.3048))/1000 -> 0
C17: span length,m | D17: 0 | E17: 0 | F17: =VLOOKUP($D18,specs!$D$5:$H$17,4)/F18*1.03*$E18+F20 -> 0 | G17: =VLOOKUP($D18,specs!$D$5:$H$17,4)/G18*1.03*$E18+G20 -> 0 | H17: =VLOOKUP($D18,specs!$D$5:$H$17,4)/H18*1.03*$E18+H20 -> 0 | I17: =VLOOKUP($D18,specs!$D$5:$H$17,4)/I18*1.03*$E18+I20 -> 0 | J17: =VLOOKUP($D18,specs!$D$5:$H$17,4)/J18*1.03*$E18+J20 -> 0 | K17: =VLOOKUP($D18,specs!$D$5:$H$17,4)/K18*1.03*$E18+K20 -> 0 | L17: =VLOOKUP($D18,specs!$D$5:$H$17,4)/L18*1.03*$E18+L20 -> 0 | M17: =VLOOKUP($D18,specs!$D$5:$H$17,4)/M18*1.03*$E18+M20 -> 0 | N17: =VLOOKUP($D18,specs!$D$5:$H$17,4)/N18*1.03*$E18+N20 -> 0 | O17: =VLOOKUP($D18,specs!$D$5:$H$17,4)/O18*1.03*$E18+O20 -> 0
C18: amplifier | D18: load | E18: 0 | F18: =F21+F20*F19 -> 63.09199797 | G18: =G21+G20*G19 -> 61.87507829 | H18: 61.85129112 | I18: 61.85081691 | J18: 61.85080745 | K18: 61.85080726 | L18: 61.85080726 | M18: 61.85080726 | N18: 61.85080726 | O18: 61.85080726
C19: cable type | D19: cable | E19: 0 | F19: =VLOOKUP($D19,specs!$K$5:$L$19,2)*IF($E$1="m",$D20,($D20*0.3048))/1000 -> 0 | G19: =VLOOKUP($D19,specs!$K$5:$L$19,2)*IF($E$1="m",$D20,($D20*0.3048))/1000 -> 0 | H19: =VLOOKUP($D19,specs!$K$5:$L$19,2)*IF($E$1="m",$D20,($D20*0.3048))/1000 -> 0 | I19: =VLOOKUP($D19,specs!$K$5:$L$19,2)*IF($E$1="m",$D20,($D20*0.3048))/1000 -> 0 | J19: =VLOOKUP($D19,specs!$K$5:$L$19,2)*IF($E$1="m",$D20,($D20*0.3048))/1000 -> 0 | K19: =VLOOKUP($D19,specs!$K$5:$L$19,2)*IF($E$1="m",$D20,($D20*0.3048))/1000 -> 0 | L19: =VLOOKUP($D19,specs!$K$5:$L$19,2)*IF($E$1="m",$D20,($D20*0.3048))/1000 -> 0 | M19: =VLOOKUP($D19,specs!$K$5:$L$19,2)*IF($E$1="m",$D20,($D20*0.3048))/1000 -> 0 | N19: =VLOOKUP($D19,specs!$K$5:$L$19,2)*IF($E$1="m",$D20,($D20*0.3048))/1000 -> 0 | O19: =VLOOKUP($D19,specs!$K$5:$L$19,2)*IF($E$1="m",$D20,($D20*0.3048))/1000 -> 0
C20: span length,m | D20: 0 | E20: 0 | F20: =VLOOKUP($D21,specs!$D$5:$H$17,4)/F21*1.03*$E21+F23 -> 0 | G20: =VLOOKUP($D21,specs!$D$5:$H$17,4)/G21*1.03*$E21+G23 -> 0 | H20: =VLOOKUP($D21,specs!$D$5:$H$17,4)/H21*1.03*$E21+H23 -> 0 | I20: =VLOOKUP($D21,specs!$D$5:$H$17,4)/I21*1.03*$E21+I23 -> 0 | J20: =VLOOKUP($D21,specs!$D$5:$H$17,4)/J21*1.03*$E21+J23 -> 0 | K20: =VLOOKUP($D21,specs!$D$5:$H$17,4)/K21*1.03*$E21+K23 -> 0 | L20: =VLOOKUP($D21,specs!$D$5:$H$17,4)/L21*1.03*$E21+L23 -> 0 | M20: =VLOOKUP($D21,specs!$D$5:$H$17,4)/M21*1.03*$E21+M23 -> 0 | N20: =VLOOKUP($D21,specs!$D$5:$H$17,4)/N21*1.03*$E21+N23 -> 0 | O20: =VLOOKUP($D21,specs!$D$5:$H$17,4)/O21*1.03*$E21+O23 -> 0
C21: amplifier | D21: load | E21: 0 | F21: =B2 -> 63.09199797 | G21: =F21-(F3-$B$2) -> 61.87507829 | H21: 61.85129112 | I21: 61.85081691 | J21: 61.85080745 | K21: 61.85080726 | L21: 61.85080726 | M21: 61.85080726 | N21: 61.85080726 | O21: 61.85080726
F22: =IF(F21<0,1,0) -> 0 | G22: =IF(G21<0,1,0) -> 0 | H22: 0 | I22: 0 | J22: 0 | K22: 0 | L22: 0 | M22: 0 | N22: 0 | O22: 0
C24: User added Branch
M27: =O21 -> 61.85080726
F34: Main Branch Net42

Sheet Net41 (hidden)
B1: =SUM(F22:O22) -> 0 | D1: =IF(O21<'AUX2'!B6,1,0) -> 0 | E1: =+'AUX2'!J5 -> m
B2: =+'AUX2'!M13 -> 63.09199797 | C2: U start, V | D2: =+O5*1 -> 0.9960635952 | F2: 1 | G2: 2 | H2: 3 | I2: 4 | J2: 5 | K2: 6 | L2: 7 | M2: 8 | N2: 9 | O2: iteration10
E3: mult. | F3: =F6+F5*F4 -> 64.38948771 | G3: =G6+G5*G4 -> 63.11910217 | H3: 63.09257622 | I3: 63.09201031 | J3: 63.09199823 | K3: 63.09199798 | L3: 63.09199797 | M3: 63.09199797 | N3: 63.09199797 | O3: 63.09199797
C4: cable type | D4: QR540 | E4: 0 | F4: =VLOOKUP($D4,specs!$K$5:$L$19,2)*IF($E$1="m",$D5,($D5*0.3048))/1000 -> 0.77088 | G4: =VLOOKUP($D4,specs!$K$5:$L$19,2)*IF($E$1="m",$D5,($D5*0.3048))/1000 -> 0.77088 | H4: =VLOOKUP($D4,specs!$K$5:$L$19,2)*IF($E$1="m",$D5,($D5*0.3048))/1000 -> 0.77088 | I4: =VLOOKUP($D4,specs!$K$5:$L$19,2)*IF($E$1="m",$D5,($D5*0.3048))/1000 -> 0.77088 | J4: =VLOOKUP($D4,specs!$K$5:$L$19,2)*IF($E$1="m",$D5,($D5*0.3048))/1000 -> 0.77088 | K4: =VLOOKUP($D4,specs!$K$5:$L$19,2)*IF($E$1="m",$D5,($D5*0.3048))/1000 -> 0.77088 | L4: =VLOOKUP($D4,specs!$K$5:$L$19,2)*IF($E$1="m",$D5,($D5*0.3048))/1000 -> 0.77088 | M4: =VLOOKUP($D4,specs!$K$5:$L$19,2)*IF($E$1="m",$D5,($D5*0.3048))/1000 -> 0.77088 | N4: =VLOOKUP($D4,specs!$K$5:$L$19,2)*IF($E$1="m",$D5,($D5*0.3048))/1000 -> 0.77088 | O4: =VLOOKUP($D4,specs!$K$5:$L$19,2)*IF($E$1="m",$D5,($D5*0.3048))/1000 -> 0.77088
C5: span length,m | D5: 146 | E5: 0 | F5: =VLOOKUP($D6,specs!$D$5:$H$17,4)/F6*1.03*$E6+F8 -> 0.9753227587 | G5: =VLOOKUP($D6,specs!$D$5:$H$17,4)/G6*1.03*$E6+G8 -> 0.9956211511 | H5: =VLOOKUP($D6,specs!$D$5:$H$17,4)/H6*1.03*$E6+H8 -> 0.9960541518 | I5: =VLOOKUP($D6,specs!$D$5:$H$17,4)/I6*1.03*$E6+I8 -> 0.9960633936 | J5: =VLOOKUP($D6,specs!$D$5:$H$17,4)/J6*1.03*$E6+J8 -> 0.9960635909 | K5: =VLOOKUP($D6,specs!$D$5:$H$17,4)/K6*1.03*$E6+K8 -> 0.9960635951 | L5: =VLOOKUP($D6,specs!$D$5:$H$17,4)/L6*1.03*$E6+L8 -> 0.9960635952 | M5: =VLOOKUP($D6,specs!$D$5:$H$17,4)/M6*1.03*$E6+M8 -> 0.9960635952 | N5: =VLOOKUP($D6,specs!$D$5:$H$17,4)/N6*1.03*$E6+N8 -> 0.9960635952 | O5: =VLOOKUP($D6,specs!$D$5:$H$17,4)/O6*1.03*$E6+O8 -> 0.9960635952
C6: amplifier | D6: LEX | E6: 1 | F6: =F9+F8*F7 -> 63.6376309 | G6: =G9+G8*G7 -> 62.35159773 | H6: 62.32473799 | I6: 62.32416496 | J6: 62.32415273 | K6: 62.32415247 | L6: 62.32415247 | M6: 62.32415247 | N6: 62.32415247 | O6: 62.32415247
C7: cable type | D7: QR540 | E7: 0 | F7: =VLOOKUP($D7,specs!$K$5:$L$19,2)*IF($E$1="m",$D8,($D8*0.3048))/1000 -> 1.11408 | G7: =VLOOKUP($D7,specs!$K$5:$L$19,2)*IF($E$1="m",$D8,($D8*0.3048))/1000 -> 1.11408 | H7: =VLOOKUP($D7,specs!$K$5:$L$19,2)*IF($E$1="m",$D8,($D8*0.3048))/1000 -> 1.11408 | I7: =VLOOKUP($D7,specs!$K$5:$L$19,2)*IF($E$1="m",$D8,($D8*0.3048))/1000 -> 1.11408 | J7: =VLOOKUP($D7,specs!$K$5:$L$19,2)*IF($E$1="m",$D8,($D8*0.3048))/1000 -> 1.11408 | K7: =VLOOKUP($D7,specs!$K$5:$L$19,2)*IF($E$1="m",$D8,($D8*0.3048))/1000 -> 1.11408 | L7: =VLOOKUP($D7,specs!$K$5:$L$19,2)*IF($E$1="m",$D8,($D8*0.3048))/1000 -> 1.11408 | M7: =VLOOKUP($D7,specs!$K$5:$L$19,2)*IF($E$1="m",$D8,($D8*0.3048))/1000 -> 1.11408 | N7: =VLOOKUP($D7,specs!$K$5:$L$19,2)*IF($E$1="m",$D8,($D8*0.3048))/1000 -> 1.11408 | O7: =VLOOKUP($D7,specs!$K$5:$L$19,2)*IF($E$1="m",$D8,($D8*0.3048))/1000 -> 1.11408
C8: span length,m | D8: 211 | E8: 0 | F8: =VLOOKUP($D9,specs!$D$5:$H$17,4)/F9*1.03*$E9+F11 -> 0.4897609997 | G8: =VLOOKUP($D9,specs!$D$5:$H$17,4)/G9*1.03*$E9+G11 -> 0.5000444358 | H8: =VLOOKUP($D9,specs!$D$5:$H$17,4)/H9*1.03*$E9+H11 -> 0.5002638606 | I8: =VLOOKUP($D9,specs!$D$5:$H$17,4)/I9*1.03*$E9+I11 -> 0.500268544 | J8: =VLOOKUP($D9,specs!$D$5:$H$17,4)/J9*1.03*$E9+J11 -> 0.5002686439 | K8: =VLOOKUP($D9,specs!$D$5:$H$17,4)/K9*1.03*$E9+K11 -> 0.5002686461 | L8: =VLOOKUP($D9,specs!$D$5:$H$17,4)/L9*1.03*$E9+L11 -> 0.5002686461 | M8: =VLOOKUP($D9,specs!$D$5:$H$17,4)/M9*1.03*$E9+M11 -> 0.5002686461 | N8: =VLOOKUP($D9,specs!$D$5:$H$17,4)/N9*1.03*$E9+N11 -> 0.5002686461 | O8: =VLOOKUP($D9,specs!$D$5:$H$17,4)/O9*1.03*$E9+O11 -> 0.5002686461
C9: amplifier | D9: LEX | E9: 1 | F9: =F12+F11*F10 -> 63.09199797 | G9: =G12+G11*G10 -> 61.79450823 | H9: 61.76740403 | I9: 61.76682578 | J9: 61.76681344 | K9: 61.76681318 | L9: 61.76681317 | M9: 61.76681317 | N9: 61.76681317 | O9: 61.76681317
C10: cable type | D10: cable | E10: 0 | F10: =VLOOKUP($D10,specs!$K$5:$L$19,2)*IF($E$1="m",$D11,($D11*0.3048))/1000 -> 0 | G10: =VLOOKUP($D10,specs!$K$5:$L$19,2)*IF($E$1="m",$D11,($D11*0.3048))/1000 -> 0 | H10: =VLOOKUP($D10,specs!$K$5:$L$19,2)*IF($E$1="m",$D11,($D11*0.3048))/1000 -> 0 | I10: =VLOOKUP($D10,specs!$K$5:$L$19,2)*IF($E$1="m",$D11,($D11*0.3048))/1000 -> 0 | J10: =VLOOKUP($D10,specs!$K$5:$L$19,2)*IF($E$1="m",$D11,($D11*0.3048))/1000 -> 0 | K10: =VLOOKUP($D10,specs!$K$5:$L$19,2)*IF($E$1="m",$D11,($D11*0.3048))/1000 -> 0 | L10: =VLOOKUP($D10,specs!$K$5:$L$19,2)*IF($E$1="m",$D11,($D11*0.3048))/1000 -> 0 | M10: =VLOOKUP($D10,specs!$K$5:$L$19,2)*IF($E$1="m",$D11,($D11*0.3048))/1000 -> 0 | N10: =VLOOKUP($D10,specs!$K$5:$L$19,2)*IF($E$1="m",$D11,($D11*0.3048))/1000 -> 0 | O10: =VLOOKUP($D10,specs!$K$5:$L$19,2)*IF($E$1="m",$D11,($D11*0.3048))/1000 -> 0
C11: span length,m | D11: 0 | E11: 0 | F11: =VLOOKUP($D12,specs!$D$5:$H$17,4)/F12*1.03*$E12+F14 -> 0 | G11: =VLOOKUP($D12,specs!$D$5:$H$17,4)/G12*1.03*$E12+G14 -> 0 | H11: =VLOOKUP($D12,specs!$D$5:$H$17,4)/H12*1.03*$E12+H14 -> 0 | I11: =VLOOKUP($D12,specs!$D$5:$H$17,4)/I12*1.03*$E12+I14 -> 0 | J11: =VLOOKUP($D12,specs!$D$5:$H$17,4)/J12*1.03*$E12+J14 -> 0 | K11: =VLOOKUP($D12,specs!$D$5:$H$17,4)/K12*1.03*$E12+K14 -> 0 | L11: =VLOOKUP($D12,specs!$D$5:$H$17,4)/L12*1.03*$E12+L14 -> 0 | M11: =VLOOKUP($D12,specs!$D$5:$H$17,4)/M12*1.03*$E12+M14 -> 0 | N11: =VLOOKUP($D12,specs!$D$5:$H$17,4)/N12*1.03*$E12+N14 -> 0 | O11: =VLOOKUP($D12,specs!$D$5:$H$17,4)/O12*1.03*$E12+O14 -> 0
C12: amplifier | D12: load | E12: 0 | F12: =F15+F14*F13 -> 63.09199797 | G12: =G15+G14*G13 -> 61.79450823 | H12: 61.76740403 | I12: 61.76682578 | J12: 61.76681344 | K12: 61.76681318 | L12: 61.76681317 | M12: 61.76681317 | N12: 61.76681317 | O12: 61.76681317
C13: cable type | D13: cable | E13: 0 | F13: =VLOOKUP($D13,specs!$K$5:$L$19,2)*IF($E$1="m",$D14,($D14*0.3048))/1000 -> 0 | G13: =VLOOKUP($D13,specs!$K$5:$L$19,2)*IF($E$1="m",$D14,($D14*0.3048))/1000 -> 0 | H13: =VLOOKUP($D13,specs!$K$5:$L$19,2)*IF($E$1="m",$D14,($D14*0.3048))/1000 -> 0 | I13: =VLOOKUP($D13,specs!$K$5:$L$19,2)*IF($E$1="m",$D14,($D14*0.3048))/1000 -> 0 | J13: =VLOOKUP($D13,specs!$K$5:$L$19,2)*IF($E$1="m",$D14,($D14*0.3048))/1000 -> 0 | K13: =VLOOKUP($D13,specs!$K$5:$L$19,2)*IF($E$1="m",$D14,($D14*0.3048))/1000 -> 0 | L13: =VLOOKUP($D13,specs!$K$5:$L$19,2)*IF($E$1="m",$D14,($D14*0.3048))/1000 -> 0 | M13: =VLOOKUP($D13,specs!$K$5:$L$19,2)*IF($E$1="m",$D14,($D14*0.3048))/1000 -> 0 | N13: =VLOOKUP($D13,specs!$K$5:$L$19,2)*IF($E$1="m",$D14,($D14*0.3048))/1000 -> 0 | O13: =VLOOKUP($D13,specs!$K$5:$L$19,2)*IF($E$1="m",$D14,($D14*0.3048))/1000 -> 0
C14: span length,m | D14: 0 | E14: 0 | F14: =VLOOKUP($D15,specs!$D$5:$H$17,4)/F15*1.03*$E15+F17 -> 0 | G14: =VLOOKUP($D15,specs!$D$5:$H$17,4)/G15*1.03*$E15+G17 -> 0 | H14: =VLOOKUP($D15,specs!$D$5:$H$17,4)/H15*1.03*$E15+H17 -> 0 | I14: =VLOOKUP($D15,specs!$D$5:$H$17,4)/I15*1.03*$E15+I17 -> 0 | J14: =VLOOKUP($D15,specs!$D$5:$H$17,4)/J15*1.03*$E15+J17 -> 0 | K14: =VLOOKUP($D15,specs!$D$5:$H$17,4)/K15*1.03*$E15+K17 -> 0 | L14: =VLOOKUP($D15,specs!$D$5:$H$17,4)/L15*1.03*$E15+L17 -> 0 | M14: =VLOOKUP($D15,specs!$D$5:$H$17,4)/M15*1.03*$E15+M17 -> 0 | N14: =VLOOKUP($D15,specs!$D$5:$H$17,4)/N15*1.03*$E15+N17 -> 0 | O14: =VLOOKUP($D15,specs!$D$5:$H$17,4)/O15*1.03*$E15+O17 -> 0
C15: amplifier | D15: load | E15: 0 | F15: =F18+F17*F16 -> 63.09199797 | G15: =G18+G17*G16 -> 61.79450823 | H15: 61.76740403 | I15: 61.76682578 | J15: 61.76681344 | K15: 61.76681318 | L15: 61.76681317 | M15: 61.76681317 | N15: 61.76681317 | O15: 61.76681317
C16: cable type | D16: cable | E16: 0 | F16: =VLOOKUP($D16,specs!$K$5:$L$19,2)*IF($E$1="m",$D17,($D17*0.3048))/1000 -> 0 | G16: =VLOOKUP($D16,specs!$K$5:$L$19,2)*IF($E$1="m",$D17,($D17*0.3048))/1000 -> 0 | H16: =VLOOKUP($D16,specs!$K$5:$L$19,2)*IF($E$1="m",$D17,($D17*0.3048))/1000 -> 0 | I16: =VLOOKUP($D16,specs!$K$5:$L$19,2)*IF($E$1="m",$D17,($D17*0.3048))/1000 -> 0 | J16: =VLOOKUP($D16,specs!$K$5:$L$19,2)*IF($E$1="m",$D17,($D17*0.3048))/1000 -> 0 | K16: =VLOOKUP($D16,specs!$K$5:$L$19,2)*IF($E$1="m",$D17,($D17*0.3048))/1000 -> 0 | L16: =VLOOKUP($D16,specs!$K$5:$L$19,2)*IF($E$1="m",$D17,($D17*0.3048))/1000 -> 0 | M16: =VLOOKUP($D16,specs!$K$5:$L$19,2)*IF($E$1="m",$D17,($D17*0.3048))/1000 -> 0 | N16: =VLOOKUP($D16,specs!$K$5:$L$19,2)*IF($E$1="m",$D17,($D17*0.3048))/1000 -> 0 | O16: =VLOOKUP($D16,specs!$K$5:$L$19,2)*IF($E$1="m",$D17,($D17*0.3048))/1000 -> 0
C17: span length,m | D17: 0 | E17: 0 | F17: =VLOOKUP($D18,specs!$D$5:$H$17,4)/F18*1.03*$E18+F20 -> 0 | G17: =VLOOKUP($D18,specs!$D$5:$H$17,4)/G18*1.03*$E18+G20 -> 0 | H17: =VLOOKUP($D18,specs!$D$5:$H$17,4)/H18*1.03*$E18+H20 -> 0 | I17: =VLOOKUP($D18,specs!$D$5:$H$17,4)/I18*1.03*$E18+I20 -> 0 | J17: =VLOOKUP($D18,specs!$D$5:$H$17,4)/J18*1.03*$E18+J20 -> 0 | K17: =VLOOKUP($D18,specs!$D$5:$H$17,4)/K18*1.03*$E18+K20 -> 0 | L17: =VLOOKUP($D18,specs!$D$5:$H$17,4)/L18*1.03*$E18+L20 -> 0 | M17: =VLOOKUP($D18,specs!$D$5:$H$17,4)/M18*1.03*$E18+M20 -> 0 | N17: =VLOOKUP($D18,specs!$D$5:$H$17,4)/N18*1.03*$E18+N20 -> 0 | O17: =VLOOKUP($D18,specs!$D$5:$H$17,4)/O18*1.03*$E18+O20 -> 0
C18: amplifier | D18: load | E18: 0 | F18: =F21+F20*F19 -> 63.09199797 | G18: =G21+G20*G19 -> 61.79450823 | H18: 61.76740403 | I18: 61.76682578 | J18: 61.76681344 | K18: 61.76681318 | L18: 61.76681317 | M18: 61.76681317 | N18: 61.76681317 | O18: 61.76681317
C19: cable type | D19: cable | E19: 0 | F19: =VLOOKUP($D19,specs!$K$5:$L$19,2)*IF($E$1="m",$D20,($D20*0.3048))/1000 -> 0 | G19: =VLOOKUP($D19,specs!$K$5:$L$19,2)*IF($E$1="m",$D20,($D20*0.3048))/1000 -> 0 | H19: =VLOOKUP($D19,specs!$K$5:$L$19,2)*IF($E$1="m",$D20,($D20*0.3048))/1000 -> 0 | I19: =VLOOKUP($D19,specs!$K$5:$L$19,2)*IF($E$1="m",$D20,($D20*0.3048))/1000 -> 0 | J19: =VLOOKUP($D19,specs!$K$5:$L$19,2)*IF($E$1="m",$D20,($D20*0.3048))/1000 -> 0 | K19: =VLOOKUP($D19,specs!$K$5:$L$19,2)*IF($E$1="m",$D20,($D20*0.3048))/1000 -> 0 | L19: =VLOOKUP($D19,specs!$K$5:$L$19,2)*IF($E$1="m",$D20,($D20*0.3048))/1000 -> 0 | M19: =VLOOKUP($D19,specs!$K$5:$L$19,2)*IF($E$1="m",$D20,($D20*0.3048))/1000 -> 0 | N19: =VLOOKUP($D19,specs!$K$5:$L$19,2)*IF($E$1="m",$D20,($D20*0.3048))/1000 -> 0 | O19: =VLOOKUP($D19,specs!$K$5:$L$19,2)*IF($E$1="m",$D20,($D20*0.3048))/1000 -> 0
C20: span length,m | D20: 0 | E20: 0 | F20: =VLOOKUP($D21,specs!$D$5:$H$17,4)/F21*1.03*$E21+F23 -> 0 | G20: =VLOOKUP($D21,specs!$D$5:$H$17,4)/G21*1.03*$E21+G23 -> 0 | H20: =VLOOKUP($D21,specs!$D$5:$H$17,4)/H21*1.03*$E21+H23 -> 0 | I20: =VLOOKUP($D21,specs!$D$5:$H$17,4)/I21*1.03*$E21+I23 -> 0 | J20: =VLOOKUP($D21,specs!$D$5:$H$17,4)/J21*1.03*$E21+J23 -> 0 | K20: =VLOOKUP($D21,specs!$D$5:$H$17,4)/K21*1.03*$E21+K23 -> 0 | L20: =VLOOKUP($D21,specs!$D$5:$H$17,4)/L21*1.03*$E21+L23 -> 0 | M20: =VLOOKUP($D21,specs!$D$5:$H$17,4)/M21*1.03*$E21+M23 -> 0 | N20: =VLOOKUP($D21,specs!$D$5:$H$17,4)/N21*1.03*$E21+N23 -> 0 | O20: =VLOOKUP($D21,specs!$D$5:$H$17,4)/O21*1.03*$E21+O23 -> 0
C21: amplifier | D21: load | E21: 0 | F21: =B2 -> 63.09199797 | G21: =F21-(F3-$B$2) -> 61.79450823 | H21: 61.76740403 | I21: 61.76682578 | J21: 61.76681344 | K21: 61.76681318 | L21: 61.76681317 | M21: 61.76681317 | N21: 61.76681317 | O21: 61.76681317
F22: =IF(F21<0,1,0) -> 0 | G22: =IF(G21<0,1,0) -> 0 | H22: 0 | I22: 0 | J22: 0 | K22: 0 | L22: 0 | M22: 0 | N22: 0 | O22: 0
C24: User added Branch
M27: =O21 -> 61.76681317
F34: Main Branch Net41

Sheet Net32 (hidden)
B1: =SUM(F22:O22) -> 0 | D1: =IF(O21<'AUX2'!B6,1,0) -> 0 | E1: =+'AUX2'!J5 -> m
B2: ='AUX2'!M12 -> 63.09199797 | C2: U start, V | D2: =+O5*1 -> 2.735823986 | F2: 1 | G2: 2 | H2: 3 | I2: 4 | J2: 5 | K2: 6 | L2: 7 | M2: 8 | N2: 9 | O2: iteration10
E3: mult. | F3: =F6+F5*F4 -> 69.3977827 | G3: =G6+G5*G4 -> 63.78261018 | H3: 63.17686852 | I3: 63.1025691 | J3: 63.09331686 | K3: 63.09216255 | L3: 63.09201851 | M3: 63.09200053 | N3: 63.09199829 | O3: 63.09199801
C4: cable type | D4: QR540 | E4: 0 | F4: =VLOOKUP($D4,specs!$K$5:$L$19,2)*IF($E$1="m",$D5,($D5*0.3048))/1000 -> 2.112 | G4: =VLOOKUP($D4,specs!$K$5:$L$19,2)*IF($E$1="m",$D5,($D5*0.3048))/1000 -> 2.112 | H4: =VLOOKUP($D4,specs!$K$5:$L$19,2)*IF($E$1="m",$D5,($D5*0.3048))/1000 -> 2.112 | I4: =VLOOKUP($D4,specs!$K$5:$L$19,2)*IF($E$1="m",$D5,($D5*0.3048))/1000 -> 2.112 | J4: =VLOOKUP($D4,specs!$K$5:$L$19,2)*IF($E$1="m",$D5,($D5*0.3048))/1000 -> 2.112 | K4: =VLOOKUP($D4,specs!$K$5:$L$19,2)*IF($E$1="m",$D5,($D5*0.3048))/1000 -> 2.112 | L4: =VLOOKUP($D4,specs!$K$5:$L$19,2)*IF($E$1="m",$D5,($D5*0.3048))/1000 -> 2.112 | M4: =VLOOKUP($D4,specs!$K$5:$L$19,2)*IF($E$1="m",$D5,($D5*0.3048))/1000 -> 2.112 | N4: =VLOOKUP($D4,specs!$K$5:$L$19,2)*IF($E$1="m",$D5,($D5*0.3048))/1000 -> 2.112 | O4: =VLOOKUP($D4,specs!$K$5:$L$19,2)*IF($E$1="m",$D5,($D5*0.3048))/1000 -> 2.112
C5: span length,m | D5: 400 | E5: 0 | F5: =VLOOKUP($D6,specs!$D$5:$H$17,4)/F6*1.03*$E6+F8 -> 2.432541221 | G5: =VLOOKUP($D6,specs!$D$5:$H$17,4)/G6*1.03*$E6+G8 -> 2.698499547 | H5: =VLOOKUP($D6,specs!$D$5:$H$17,4)/H6*1.03*$E6+H8 -> 2.731174181 | I5: =VLOOKUP($D6,specs!$D$5:$H$17,4)/I6*1.03*$E6+I8 -> 2.735243849 | J5: =VLOOKUP($D6,specs!$D$5:$H$17,4)/J6*1.03*$E6+J8 -> 2.735751593 | K5: =VLOOKUP($D6,specs!$D$5:$H$17,4)/K6*1.03*$E6+K8 -> 2.735814954 | L5: =VLOOKUP($D6,specs!$D$5:$H$17,4)/L6*1.03*$E6+L8 -> 2.735822861 | M5: =VLOOKUP($D6,specs!$D$5:$H$17,4)/M6*1.03*$E6+M8 -> 2.735823848 | N5: =VLOOKUP($D6,specs!$D$5:$H$17,4)/N6*1.03*$E6+N8 -> 2.735823971 | O5: =VLOOKUP($D6,specs!$D$5:$H$17,4)/O6*1.03*$E6+O8 -> 2.735823986
C6: amplifier | D6: LEX | E6: 1 | F6: =F9+F8*F7 -> 64.26025564 | G6: =G9+G8*G7 -> 58.08337914 | H6: 57.40862865 | I6: 57.32573409 | J6: 57.3154095 | K6: 57.31412137 | L6: 57.31396063 | M6: 57.31394057 | N6: 57.31393806 | O6: 57.31393775
C7: cable type | D7: QR540 | E7: 0 | F7: =VLOOKUP($D7,specs!$K$5:$L$19,2)*IF($E$1="m",$D8,($D8*0.3048))/1000 -> 0.39072 | G7: =VLOOKUP($D7,specs!$K$5:$L$19,2)*IF($E$1="m",$D8,($D8*0.3048))/1000 -> 0.39072 | H7: =VLOOKUP($D7,specs!$K$5:$L$19,2)*IF($E$1="m",$D8,($D8*0.3048))/1000 -> 0.39072 | I7: =VLOOKUP($D7,specs!$K$5:$L$19,2)*IF($E$1="m",$D8,($D8*0.3048))/1000 -> 0.39072 | J7: =VLOOKUP($D7,specs!$K$5:$L$19,2)*IF($E$1="m",$D8,($D8*0.3048))/1000 -> 0.39072 | K7: =VLOOKUP($D7,specs!$K$5:$L$19,2)*IF($E$1="m",$D8,($D8*0.3048))/1000 -> 0.39072 | L7: =VLOOKUP($D7,specs!$K$5:$L$19,2)*IF($E$1="m",$D8,($D8*0.3048))/1000 -> 0.39072 | M7: =VLOOKUP($D7,specs!$K$5:$L$19,2)*IF($E$1="m",$D8,($D8*0.3048))/1000 -> 0.39072 | N7: =VLOOKUP($D7,specs!$K$5:$L$19,2)*IF($E$1="m",$D8,($D8*0.3048))/1000 -> 0.39072 | O7: =VLOOKUP($D7,specs!$K$5:$L$19,2)*IF($E$1="m",$D8,($D8*0.3048))/1000 -> 0.39072
C8: span length,m | D8: 74 | E8: 0 | F8: =VLOOKUP($D9,specs!$D$5:$H$17,4)/F9*1.03*$E9+F11 -> 1.951684124 | G8: =VLOOKUP($D9,specs!$D$5:$H$17,4)/G9*1.03*$E9+G11 -> 2.166505705 | H8: =VLOOKUP($D9,specs!$D$5:$H$17,4)/H9*1.03*$E9+H11 -> 2.192927567 | I8: =VLOOKUP($D9,specs!$D$5:$H$17,4)/I9*1.03*$E9+I11 -> 2.196218916 | J8: =VLOOKUP($D9,specs!$D$5:$H$17,4)/J9*1.03*$E9+J11 -> 2.196629562 | K8: =VLOOKUP($D9,specs!$D$5:$H$17,4)/K9*1.03*$E9+K11 -> 2.196680806 | L8: =VLOOKUP($D9,specs!$D$5:$H$17,4)/L9*1.03*$E9+L11 -> 2.196687201 | M8: =VLOOKUP($D9,specs!$D$5:$H$17,4)/M9*1.03*$E9+M11 -> 2.196687999 | N8: =VLOOKUP($D9,specs!$D$5:$H$17,4)/N9*1.03*$E9+N11 -> 2.196688099 | O8: =VLOOKUP($D9,specs!$D$5:$H$17,4)/O9*1.03*$E9+O11 -> 2.196688111
C9: amplifier | D9: LEX | E9: 2 | F9: =F12+F11*F10 -> 63.49769362 | G9: =G12+G11*G10 -> 57.23688203 | H9: 56.55180799 | I9: 56.46762743 | J9: 56.45714239 | K9: 56.45583425 | L9: 56.455671 | M9: 56.45565063 | N9: 56.45564809 | O9: 56.45564777
C10: cable type | D10: QR540 | E10: 0 | F10: =VLOOKUP($D10,specs!$K$5:$L$19,2)*IF($E$1="m",$D11,($D11*0.3048))/1000 -> 0.26928 | G10: =VLOOKUP($D10,specs!$K$5:$L$19,2)*IF($E$1="m",$D11,($D11*0.3048))/1000 -> 0.26928 | H10: =VLOOKUP($D10,specs!$K$5:$L$19,2)*IF($E$1="m",$D11,($D11*0.3048))/1000 -> 0.26928 | I10: =VLOOKUP($D10,specs!$K$5:$L$19,2)*IF($E$1="m",$D11,($D11*0.3048))/1000 -> 0.26928 | J10: =VLOOKUP($D10,specs!$K$5:$L$19,2)*IF($E$1="m",$D11,($D11*0.3048))/1000 -> 0.26928 | K10: =VLOOKUP($D10,specs!$K$5:$L$19,2)*IF($E$1="m",$D11,($D11*0.3048))/1000 -> 0.26928 | L10: =VLOOKUP($D10,specs!$K$5:$L$19,2)*IF($E$1="m",$D11,($D11*0.3048))/1000 -> 0.26928 | M10: =VLOOKUP($D10,specs!$K$5:$L$19,2)*IF($E$1="m",$D11,($D11*0.3048))/1000 -> 0.26928 | N10: =VLOOKUP($D10,specs!$K$5:$L$19,2)*IF($E$1="m",$D11,($D11*0.3048))/1000 -> 0.26928 | O10: =VLOOKUP($D10,specs!$K$5:$L$19,2)*IF($E$1="m",$D11,($D11*0.3048))/1000 -> 0.26928
C11: span length,m | D11: 51 | E11: 0 | F11: =VLOOKUP($D12,specs!$D$5:$H$17,4)/F12*1.03*$E12+F14 -> 0.9784204276 | G11: =VLOOKUP($D12,specs!$D$5:$H$17,4)/G12*1.03*$E12+G14 -> 1.086782321 | H11: =VLOOKUP($D12,specs!$D$5:$H$17,4)/H12*1.03*$E12+H14 -> 1.100124309 | I11: =VLOOKUP($D12,specs!$D$5:$H$17,4)/I12*1.03*$E12+I14 -> 1.101786534 | J11: =VLOOKUP($D12,specs!$D$5:$H$17,4)/J12*1.03*$E12+J14 -> 1.101993925 | K11: =VLOOKUP($D12,specs!$D$5:$H$17,4)/K12*1.03*$E12+K14 -> 1.102019806 | L11: =VLOOKUP($D12,specs!$D$5:$H$17,4)/L12*1.03*$E12+L14 -> 1.102023035 | M11: =VLOOKUP($D12,specs!$D$5:$H$17,4)/M12*1.03*$E12+M14 -> 1.102023438 | N11: =VLOOKUP($D12,specs!$D$5:$H$17,4)/N12*1.03*$E12+N14 -> 1.102023489 | O11: =VLOOKUP($D12,specs!$D$5:$H$17,4)/O12*1.03*$E12+O14 -> 1.102023495
C12: amplifier | D12: LEX | E12: 1 | F12: =F15+F14*F13 -> 63.23422456 | G12: =G15+G14*G13 -> 56.94423329 | H12: 56.25556651 | I12: 56.17093836 | J12: 56.16039747 | K12: 56.15908235 | L12: 56.15891824 | M12: 56.15889776 | N12: 56.1588952 | O12: 56.15889489
C13: cable type | D13: QR540 | E13: 0 | F13: =VLOOKUP($D13,specs!$K$5:$L$19,2)*IF($E$1="m",$D14,($D14*0.3048))/1000 -> 0.2904 | G13: =VLOOKUP($D13,specs!$K$5:$L$19,2)*IF($E$1="m",$D14,($D14*0.3048))/1000 -> 0.2904 | H13: =VLOOKUP($D13,specs!$K$5:$L$19,2)*IF($E$1="m",$D14,($D14*0.3048))/1000 -> 0.2904 | I13: =VLOOKUP($D13,specs!$K$5:$L$19,2)*IF($E$1="m",$D14,($D14*0.3048))/1000 -> 0.2904 | J13: =VLOOKUP($D13,specs!$K$5:$L$19,2)*IF($E$1="m",$D14,($D14*0.3048))/1000 -> 0.2904 | K13: =VLOOKUP($D13,specs!$K$5:$L$19,2)*IF($E$1="m",$D14,($D14*0.3048))/1000 -> 0.2904 | L13: =VLOOKUP($D13,specs!$K$5:$L$19,2)*IF($E$1="m",$D14,($D14*0.3048))/1000 -> 0.2904 | M13: =VLOOKUP($D13,specs!$K$5:$L$19,2)*IF($E$1="m",$D14,($D14*0.3048))/1000 -> 0.2904 | N13: =VLOOKUP($D13,specs!$K$5:$L$19,2)*IF($E$1="m",$D14,($D14*0.3048))/1000 -> 0.2904 | O13: =VLOOKUP($D13,specs!$K$5:$L$19,2)*IF($E$1="m",$D14,($D14*0.3048))/1000 -> 0.2904
C14: span length,m | D14: 55 | E14: 0 | F14: =VLOOKUP($D15,specs!$D$5:$H$17,4)/F15*1.03*$E15+F17 -> 0.4897609997 | G14: =VLOOKUP($D15,specs!$D$5:$H$17,4)/G15*1.03*$E15+G17 -> 0.5441461622 | H14: =VLOOKUP($D15,specs!$D$5:$H$17,4)/H15*1.03*$E15+H17 -> 0.5508453325 | I14: =VLOOKUP($D15,specs!$D$5:$H$17,4)/I15*1.03*$E15+I17 -> 0.5516800037 | J14: =VLOOKUP($D15,specs!$D$5:$H$17,4)/J15*1.03*$E15+J17 -> 0.5517841441 | K14: =VLOOKUP($D15,specs!$D$5:$H$17,4)/K15*1.03*$E15+K17 -> 0.5517971398 | L14: =VLOOKUP($D15,specs!$D$5:$H$17,4)/L15*1.03*$E15+L17 -> 0.5517987616 | M14: =VLOOKUP($D15,specs!$D$5:$H$17,4)/M15*1.03*$E15+M17 -> 0.551798964 | N14: =VLOOKUP($D15,specs!$D$5:$H$17,4)/N15*1.03*$E15+N17 -> 0.5517989892 | O14: =VLOOKUP($D15,specs!$D$5:$H$17,4)/O15*1.03*$E15+O17 -> 0.5517989924
C15: amplifier | D15: LEX | E15: 1 | F15: =F18+F17*F16 -> 63.09199797 | G15: =G18+G17*G16 -> 56.78621324 | H15: 56.09560103 | I15: 56.01073048 | J15: 56.00015935 | K15: 55.99884046 | L15: 55.99867588 | M15: 55.99865534 | N15: 55.99865278 | O15: 55.99865246
C16: cable type | D16: cable | E16: 0 | F16: =VLOOKUP($D16,specs!$K$5:$L$19,2)*IF($E$1="m",$D17,($D17*0.3048))/1000 -> 0 | G16: =VLOOKUP($D16,specs!$K$5:$L$19,2)*IF($E$1="m",$D17,($D17*0.3048))/1000 -> 0 | H16: =VLOOKUP($D16,specs!$K$5:$L$19,2)*IF($E$1="m",$D17,($D17*0.3048))/1000 -> 0 | I16: =VLOOKUP($D16,specs!$K$5:$L$19,2)*IF($E$1="m",$D17,($D17*0.3048))/1000 -> 0 | J16: =VLOOKUP($D16,specs!$K$5:$L$19,2)*IF($E$1="m",$D17,($D17*0.3048))/1000 -> 0 | K16: =VLOOKUP($D16,specs!$K$5:$L$19,2)*IF($E$1="m",$D17,($D17*0.3048))/1000 -> 0 | L16: =VLOOKUP($D16,specs!$K$5:$L$19,2)*IF($E$1="m",$D17,($D17*0.3048))/1000 -> 0 | M16: =VLOOKUP($D16,specs!$K$5:$L$19,2)*IF($E$1="m",$D17,($D17*0.3048))/1000 -> 0 | N16: =VLOOKUP($D16,specs!$K$5:$L$19,2)*IF($E$1="m",$D17,($D17*0.3048))/1000 -> 0 | O16: =VLOOKUP($D16,specs!$K$5:$L$19,2)*IF($E$1="m",$D17,($D17*0.3048))/1000 -> 0
C17: span length,m | D17: 0 | E17: 0 | F17: =VLOOKUP($D18,specs!$D$5:$H$17,4)/F18*1.03*$E18+F20 -> 0 | G17: =VLOOKUP($D18,specs!$D$5:$H$17,4)/G18*1.03*$E18+G20 -> 0 | H17: =VLOOKUP($D18,specs!$D$5:$H$17,4)/H18*1.03*$E18+H20 -> 0 | I17: =VLOOKUP($D18,specs!$D$5:$H$17,4)/I18*1.03*$E18+I20 -> 0 | J17: =VLOOKUP($D18,specs!$D$5:$H$17,4)/J18*1.03*$E18+J20 -> 0 | K17: =VLOOKUP($D18,specs!$D$5:$H$17,4)/K18*1.03*$E18+K20 -> 0 | L17: =VLOOKUP($D18,specs!$D$5:$H$17,4)/L18*1.03*$E18+L20 -> 0 | M17: =VLOOKUP($D18,specs!$D$5:$H$17,4)/M18*1.03*$E18+M20 -> 0 | N17: =VLOOKUP($D18,specs!$D$5:$H$17,4)/N18*1.03*$E18+N20 -> 0 | O17: =VLOOKUP($D18,specs!$D$5:$H$17,4)/O18*1.03*$E18+O20 -> 0
C18: amplifier | D18: load | E18: 0 | F18: =F21+F20*F19 -> 63.09199797 | G18: =G21+G20*G19 -> 56.78621324 | H18: 56.09560103 | I18: 56.01073048 | J18: 56.00015935 | K18: 55.99884046 | L18: 55.99867588 | M18: 55.99865534 | N18: 55.99865278 | O18: 55.99865246
C19: cable type | D19: cable | E19: 0 | F19: =VLOOKUP($D19,specs!$K$5:$L$19,2)*IF($E$1="m",$D20,($D20*0.3048))/1000 -> 0 | G19: =VLOOKUP($D19,specs!$K$5:$L$19,2)*IF($E$1="m",$D20,($D20*0.3048))/1000 -> 0 | H19: =VLOOKUP($D19,specs!$K$5:$L$19,2)*IF($E$1="m",$D20,($D20*0.3048))/1000 -> 0 | I19: =VLOOKUP($D19,specs!$K$5:$L$19,2)*IF($E$1="m",$D20,($D20*0.3048))/1000 -> 0 | J19: =VLOOKUP($D19,specs!$K$5:$L$19,2)*IF($E$1="m",$D20,($D20*0.3048))/1000 -> 0 | K19: =VLOOKUP($D19,specs!$K$5:$L$19,2)*IF($E$1="m",$D20,($D20*0.3048))/1000 -> 0 | L19: =VLOOKUP($D19,specs!$K$5:$L$19,2)*IF($E$1="m",$D20,($D20*0.3048))/1000 -> 0 | M19: =VLOOKUP($D19,specs!$K$5:$L$19,2)*IF($E$1="m",$D20,($D20*0.3048))/1000 -> 0 | N19: =VLOOKUP($D19,specs!$K$5:$L$19,2)*IF($E$1="m",$D20,($D20*0.3048))/1000 -> 0 | O19: =VLOOKUP($D19,specs!$K$5:$L$19,2)*IF($E$1="m",$D20,($D20*0.3048))/1000 -> 0
C20: span length,m | D20: 0 | E20: 0 | F20: =VLOOKUP($D21,specs!$D$5:$H$17,4)/F21*1.03*$E21+F23 -> 0 | G20: =VLOOKUP($D21,specs!$D$5:$H$17,4)/G21*1.03*$E21+G23 -> 0 | H20: =VLOOKUP($D21,specs!$D$5:$H$17,4)/H21*1.03*$E21+H23 -> 0 | I20: =VLOOKUP($D21,specs!$D$5:$H$17,4)/I21*1.03*$E21+I23 -> 0 | J20: =VLOOKUP($D21,specs!$D$5:$H$17,4)/J21*1.03*$E21+J23 -> 0 | K20: =VLOOKUP($D21,specs!$D$5:$H$17,4)/K21*1.03*$E21+K23 -> 0 | L20: =VLOOKUP($D21,specs!$D$5:$H$17,4)/L21*1.03*$E21+L23 -> 0 | M20: =VLOOKUP($D21,specs!$D$5:$H$17,4)/M21*1.03*$E21+M23 -> 0 | N20: =VLOOKUP($D21,specs!$D$5:$H$17,4)/N21*1.03*$E21+N23 -> 0 | O20: =VLOOKUP($D21,specs!$D$5:$H$17,4)/O21*1.03*$E21+O23 -> 0
C21: amplifier | D21: load | E21: 0 | F21: =B2 -> 63.09199797 | G21: =F21-(F3-$B$2) -> 56.78621324 | H21: 56.09560103 | I21: 56.01073048 | J21: 56.00015935 | K21: 55.99884046 | L21: 55.99867588 | M21: 55.99865534 | N21: 55.99865278 | O21: 55.99865246
F22: =IF(F21<0,1,0) -> 0 | G22: =IF(G21<0,1,0) -> 0 | H22: 0 | I22: 0 | J22: 0 | K22: 0 | L22: 0 | M22: 0 | N22: 0 | O22: 0
C24: User added Branch
M27: =O21 -> 55.99865246
F34: Main Branch Net32

Sheet Net31 (hidden)
B1: =SUM(F22:O22) -> 0 | D1: =IF(O21<'AUX2'!B6,1,0) -> 0 | E1: =+'AUX2'!J5 -> m
B2: =+'AUX2'!M11 -> 63.09199797 | C2: U start, V | D2: =+O5*1 -> 0.4969959128 | F2: 1 | G2: 2 | H2: 3 | I2: 4 | J2: 5 | K2: 6 | L2: 7 | M2: 8 | N2: 9 | O2: iteration10
E3: mult. | F3: =F6+F5*F4 -> 63.9970763 | G3: =G6+G5*G4 -> 63.10517062 | H3: 63.09219252 | I3: 63.09200084 | J3: 63.09199801 | K3: 63.09199797 | L3: 63.09199797 | M3: 63.09199797 | N3: 63.09199797 | O3: 63.09199797
C4: cable type | D4: QR540 | E4: 0 | F4: =VLOOKUP($D4,specs!$K$5:$L$19,2)*IF($E$1="m",$D5,($D5*0.3048))/1000 -> 1.848 | G4: =VLOOKUP($D4,specs!$K$5:$L$19,2)*IF($E$1="m",$D5,($D5*0.3048))/1000 -> 1.848 | H4: =VLOOKUP($D4,specs!$K$5:$L$19,2)*IF($E$1="m",$D5,($D5*0.3048))/1000 -> 1.848 | I4: =VLOOKUP($D4,specs!$K$5:$L$19,2)*IF($E$1="m",$D5,($D5*0.3048))/1000 -> 1.848 | J4: =VLOOKUP($D4,specs!$K$5:$L$19,2)*IF($E$1="m",$D5,($D5*0.3048))/1000 -> 1.848 | K4: =VLOOKUP($D4,specs!$K$5:$L$19,2)*IF($E$1="m",$D5,($D5*0.3048))/1000 -> 1.848 | L4: =VLOOKUP($D4,specs!$K$5:$L$19,2)*IF($E$1="m",$D5,($D5*0.3048))/1000 -> 1.848 | M4: =VLOOKUP($D4,specs!$K$5:$L$19,2)*IF($E$1="m",$D5,($D5*0.3048))/1000 -> 1.848 | N4: =VLOOKUP($D4,specs!$K$5:$L$19,2)*IF($E$1="m",$D5,($D5*0.3048))/1000 -> 1.848 | O4: =VLOOKUP($D4,specs!$K$5:$L$19,2)*IF($E$1="m",$D5,($D5*0.3048))/1000 -> 1.848
C5: span length,m | D5: 350 | E5: 0 | F5: =VLOOKUP($D6,specs!$D$5:$H$17,4)/F6*1.03*$E6+F8 -> 0.4897609997 | G5: =VLOOKUP($D6,specs!$D$5:$H$17,4)/G6*1.03*$E6+G8 -> 0.4968890593 | H5: =VLOOKUP($D6,specs!$D$5:$H$17,4)/H6*1.03*$E6+H8 -> 0.4969943344 | I5: =VLOOKUP($D6,specs!$D$5:$H$17,4)/I6*1.03*$E6+I8 -> 0.4969958895 | J5: =VLOOKUP($D6,specs!$D$5:$H$17,4)/J6*1.03*$E6+J8 -> 0.4969959125 | K5: =VLOOKUP($D6,specs!$D$5:$H$17,4)/K6*1.03*$E6+K8 -> 0.4969959128 | L5: =VLOOKUP($D6,specs!$D$5:$H$17,4)/L6*1.03*$E6+L8 -> 0.4969959128 | M5: =VLOOKUP($D6,specs!$D$5:$H$17,4)/M6*1.03*$E6+M8 -> 0.4969959128 | N5: =VLOOKUP($D6,specs!$D$5:$H$17,4)/N6*1.03*$E6+N8 -> 0.4969959128 | O5: =VLOOKUP($D6,specs!$D$5:$H$17,4)/O6*1.03*$E6+O8 -> 0.4969959128
C6: amplifier | D6: LEX | E6: 1 | F6: =F9+F8*F7 -> 63.09199797 | G6: =G9+G8*G7 -> 62.18691964 | H6: 62.17374699 | I6: 62.17355244 | J6: 62.17354957 | K6: 62.17354952 | L6: 62.17354952 | M6: 62.17354952 | N6: 62.17354952 | O6: 62.17354952
C7: cable type | D7: cable | E7: 0 | F7: =VLOOKUP($D7,specs!$K$5:$L$19,2)*IF($E$1="m",$D8,($D8*0.3048))/1000 -> 0 | G7: =VLOOKUP($D7,specs!$K$5:$L$19,2)*IF($E$1="m",$D8,($D8*0.3048))/1000 -> 0 | H7: =VLOOKUP($D7,specs!$K$5:$L$19,2)*IF($E$1="m",$D8,($D8*0.3048))/1000 -> 0 | I7: =VLOOKUP($D7,specs!$K$5:$L$19,2)*IF($E$1="m",$D8,($D8*0.3048))/1000 -> 0 | J7: =VLOOKUP($D7,specs!$K$5:$L$19,2)*IF($E$1="m",$D8,($D8*0.3048))/1000 -> 0 | K7: =VLOOKUP($D7,specs!$K$5:$L$19,2)*IF($E$1="m",$D8,($D8*0.3048))/1000 -> 0 | L7: =VLOOKUP($D7,specs!$K$5:$L$19,2)*IF($E$1="m",$D8,($D8*0.3048))/1000 -> 0 | M7: =VLOOKUP($D7,specs!$K$5:$L$19,2)*IF($E$1="m",$D8,($D8*0.3048))/1000 -> 0 | N7: =VLOOKUP($D7,specs!$K$5:$L$19,2)*IF($E$1="m",$D8,($D8*0.3048))/1000 -> 0 | O7: =VLOOKUP($D7,specs!$K$5:$L$19,2)*IF($E$1="m",$D8,($D8*0.3048))/1000 -> 0
C8: span length,m | D8: 0 | E8: 0 | F8: =VLOOKUP($D9,specs!$D$5:$H$17,4)/F9*1.03*$E9+F11 -> 0 | G8: =VLOOKUP($D9,specs!$D$5:$H$17,4)/G9*1.03*$E9+G11 -> 0 | H8: =VLOOKUP($D9,specs!$D$5:$H$17,4)/H9*1.03*$E9+H11 -> 0 | I8: =VLOOKUP($D9,specs!$D$5:$H$17,4)/I9*1.03*$E9+I11 -> 0 | J8: =VLOOKUP($D9,specs!$D$5:$H$17,4)/J9*1.03*$E9+J11 -> 0 | K8: =VLOOKUP($D9,specs!$D$5:$H$17,4)/K9*1.03*$E9+K11 -> 0 | L8: =VLOOKUP($D9,specs!$D$5:$H$17,4)/L9*1.03*$E9+L11 -> 0 | M8: =VLOOKUP($D9,specs!$D$5:$H$17,4)/M9*1.03*$E9+M11 -> 0 | N8: =VLOOKUP($D9,specs!$D$5:$H$17,4)/N9*1.03*$E9+N11 -> 0 | O8: =VLOOKUP($D9,specs!$D$5:$H$17,4)/O9*1.03*$E9+O11 -> 0
C9: amplifier | D9: load | E9: 0 | F9: =F12+F11*F10 -> 63.09199797 | G9: =G12+G11*G10 -> 62.18691964 | H9: 62.17374699 | I9: 62.17355244 | J9: 62.17354957 | K9: 62.17354952 | L9: 62.17354952 | M9: 62.17354952 | N9: 62.17354952 | O9: 62.17354952
C10: cable type | D10: cable | E10: 0 | F10: =VLOOKUP($D10,specs!$K$5:$L$19,2)*IF($E$1="m",$D11,($D11*0.3048))/1000 -> 0 | G10: =VLOOKUP($D10,specs!$K$5:$L$19,2)*IF($E$1="m",$D11,($D11*0.3048))/1000 -> 0 | H10: =VLOOKUP($D10,specs!$K$5:$L$19,2)*IF($E$1="m",$D11,($D11*0.3048))/1000 -> 0 | I10: =VLOOKUP($D10,specs!$K$5:$L$19,2)*IF($E$1="m",$D11,($D11*0.3048))/1000 -> 0 | J10: =VLOOKUP($D10,specs!$K$5:$L$19,2)*IF($E$1="m",$D11,($D11*0.3048))/1000 -> 0 | K10: =VLOOKUP($D10,specs!$K$5:$L$19,2)*IF($E$1="m",$D11,($D11*0.3048))/1000 -> 0 | L10: =VLOOKUP($D10,specs!$K$5:$L$19,2)*IF($E$1="m",$D11,($D11*0.3048))/1000 -> 0 | M10: =VLOOKUP($D10,specs!$K$5:$L$19,2)*IF($E$1="m",$D11,($D11*0.3048))/1000 -> 0 | N10: =VLOOKUP($D10,specs!$K$5:$L$19,2)*IF($E$1="m",$D11,($D11*0.3048))/1000 -> 0 | O10: =VLOOKUP($D10,specs!$K$5:$L$19,2)*IF($E$1="m",$D11,($D11*0.3048))/1000 -> 0
C11: span length,m | D11: 0 | E11: 0 | F11: =VLOOKUP($D12,specs!$D$5:$H$17,4)/F12*1.03*$E12+F14 -> 0 | G11: =VLOOKUP($D12,specs!$D$5:$H$17,4)/G12*1.03*$E12+G14 -> 0 | H11: =VLOOKUP($D12,specs!$D$5:$H$17,4)/H12*1.03*$E12+H14 -> 0 | I11: =VLOOKUP($D12,specs!$D$5:$H$17,4)/I12*1.03*$E12+I14 -> 0 | J11: =VLOOKUP($D12,specs!$D$5:$H$17,4)/J12*1.03*$E12+J14 -> 0 | K11: =VLOOKUP($D12,specs!$D$5:$H$17,4)/K12*1.03*$E12+K14 -> 0 | L11: =VLOOKUP($D12,specs!$D$5:$H$17,4)/L12*1.03*$E12+L14 -> 0 | M11: =VLOOKUP($D12,specs!$D$5:$H$17,4)/M12*1.03*$E12+M14 -> 0 | N11: =VLOOKUP($D12,specs!$D$5:$H$17,4)/N12*1.03*$E12+N14 -> 0 | O11: =VLOOKUP($D12,specs!$D$5:$H$17,4)/O12*1.03*$E12+O14 -> 0
C12: amplifier | D12: load | E12: 0 | F12: =F15+F14*F13 -> 63.09199797 | G12: =G15+G14*G13 -> 62.18691964 | H12: 62.17374699 | I12: 62.17355244 | J12: 62.17354957 | K12: 62.17354952 | L12: 62.17354952 | M12: 62.17354952 | N12: 62.17354952 | O12: 62.17354952
C13: cable type | D13: cable | E13: 0 | F13: =VLOOKUP($D13,specs!$K$5:$L$19,2)*IF($E$1="m",$D14,($D14*0.3048))/1000 -> 0 | G13: =VLOOKUP($D13,specs!$K$5:$L$19,2)*IF($E$1="m",$D14,($D14*0.3048))/1000 -> 0 | H13: =VLOOKUP($D13,specs!$K$5:$L$19,2)*IF($E$1="m",$D14,($D14*0.3048))/1000 -> 0 | I13: =VLOOKUP($D13,specs!$K$5:$L$19,2)*IF($E$1="m",$D14,($D14*0.3048))/1000 -> 0 | J13: =VLOOKUP($D13,specs!$K$5:$L$19,2)*IF($E$1="m",$D14,($D14*0.3048))/1000 -> 0 | K13: =VLOOKUP($D13,specs!$K$5:$L$19,2)*IF($E$1="m",$D14,($D14*0.3048))/1000 -> 0 | L13: =VLOOKUP($D13,specs!$K$5:$L$19,2)*IF($E$1="m",$D14,($D14*0.3048))/1000 -> 0 | M13: =VLOOKUP($D13,specs!$K$5:$L$19,2)*IF($E$1="m",$D14,($D14*0.3048))/1000 -> 0 | N13: =VLOOKUP($D13,specs!$K$5:$L$19,2)*IF($E$1="m",$D14,($D14*0.3048))/1000 -> 0 | O13: =VLOOKUP($D13,specs!$K$5:$L$19,2)*IF($E$1="m",$D14,($D14*0.3048))/1000 -> 0
C14: span length,m | D14: 0 | E14: 0 | F14: =VLOOKUP($D15,specs!$D$5:$H$17,4)/F15*1.03*$E15+F17 -> 0 | G14: =VLOOKUP($D15,specs!$D$5:$H$17,4)/G15*1.03*$E15+G17 -> 0 | H14: =VLOOKUP($D15,specs!$D$5:$H$17,4)/H15*1.03*$E15+H17 -> 0 | I14: =VLOOKUP($D15,specs!$D$5:$H$17,4)/I15*1.03*$E15+I17 -> 0 | J14: =VLOOKUP($D15,specs!$D$5:$H$17,4)/J15*1.03*$E15+J17 -> 0 | K14: =VLOOKUP($D15,specs!$D$5:$H$17,4)/K15*1.03*$E15+K17 -> 0 | L14: =VLOOKUP($D15,specs!$D$5:$H$17,4)/L15*1.03*$E15+L17 -> 0 | M14: =VLOOKUP($D15,specs!$D$5:$H$17,4)/M15*1.03*$E15+M17 -> 0 | N14: =VLOOKUP($D15,specs!$D$5:$H$17,4)/N15*1.03*$E15+N17 -> 0 | O14: =VLOOKUP($D15,specs!$D$5:$H$17,4)/O15*1.03*$E15+O17 -> 0
C15: amplifier | D15: load | E15: 0 | F15: =F18+F17*F16 -> 63.09199797 | G15: =G18+G17*G16 -> 62.18691964 | H15: 62.17374699 | I15: 62.17355244 | J15: 62.17354957 | K15: 62.17354952 | L15: 62.17354952 | M15: 62.17354952 | N15: 62.17354952 | O15: 62.17354952
C16: cable type | D16: cable | E16: 0 | F16: =VLOOKUP($D16,specs!$K$5:$L$19,2)*IF($E$1="m",$D17,($D17*0.3048))/1000 -> 0 | G16: =VLOOKUP($D16,specs!$K$5:$L$19,2)*IF($E$1="m",$D17,($D17*0.3048))/1000 -> 0 | H16: =VLOOKUP($D16,specs!$K$5:$L$19,2)*IF($E$1="m",$D17,($D17*0.3048))/1000 -> 0 | I16: =VLOOKUP($D16,specs!$K$5:$L$19,2)*IF($E$1="m",$D17,($D17*0.3048))/1000 -> 0 | J16: =VLOOKUP($D16,specs!$K$5:$L$19,2)*IF($E$1="m",$D17,($D17*0.3048))/1000 -> 0 | K16: =VLOOKUP($D16,specs!$K$5:$L$19,2)*IF($E$1="m",$D17,($D17*0.3048))/1000 -> 0 | L16: =VLOOKUP($D16,specs!$K$5:$L$19,2)*IF($E$1="m",$D17,($D17*0.3048))/1000 -> 0 | M16: =VLOOKUP($D16,specs!$K$5:$L$19,2)*IF($E$1="m",$D17,($D17*0.3048))/1000 -> 0 | N16: =VLOOKUP($D16,specs!$K$5:$L$19,2)*IF($E$1="m",$D17,($D17*0.3048))/1000 -> 0 | O16: =VLOOKUP($D16,specs!$K$5:$L$19,2)*IF($E$1="m",$D17,($D17*0.3048))/1000 -> 0
C17: span length,m | D17: 0 | E17: 0 | F17: =VLOOKUP($D18,specs!$D$5:$H$17,4)/F18*1.03*$E18+F20 -> 0 | G17: =VLOOKUP($D18,specs!$D$5:$H$17,4)/G18*1.03*$E18+G20 -> 0 | H17: =VLOOKUP($D18,specs!$D$5:$H$17,4)/H18*1.03*$E18+H20 -> 0 | I17: =VLOOKUP($D18,specs!$D$5:$H$17,4)/I18*1.03*$E18+I20 -> 0 | J17: =VLOOKUP($D18,specs!$D$5:$H$17,4)/J18*1.03*$E18+J20 -> 0 | K17: =VLOOKUP($D18,specs!$D$5:$H$17,4)/K18*1.03*$E18+K20 -> 0 | L17: =VLOOKUP($D18,specs!$D$5:$H$17,4)/L18*1.03*$E18+L20 -> 0 | M17: =VLOOKUP($D18,specs!$D$5:$H$17,4)/M18*1.03*$E18+M20 -> 0 | N17: =VLOOKUP($D18,specs!$D$5:$H$17,4)/N18*1.03*$E18+N20 -> 0 | O17: =VLOOKUP($D18,specs!$D$5:$H$17,4)/O18*1.03*$E18+O20 -> 0
C18: amplifier | D18: load | E18: 0 | F18: =F21+F20*F19 -> 63.09199797 | G18: =G21+G20*G19 -> 62.18691964 | H18: 62.17374699 | I18: 62.17355244 | J18: 62.17354957 | K18: 62.17354952 | L18: 62.17354952 | M18: 62.17354952 | N18: 62.17354952 | O18: 62.17354952
C19: cable type | D19: cable | E19: 0 | F19: =VLOOKUP($D19,specs!$K$5:$L$19,2)*IF($E$1="m",$D20,($D20*0.3048))/1000 -> 0 | G19: =VLOOKUP($D19,specs!$K$5:$L$19,2)*IF($E$1="m",$D20,($D20*0.3048))/1000 -> 0 | H19: =VLOOKUP($D19,specs!$K$5:$L$19,2)*IF($E$1="m",$D20,($D20*0.3048))/1000 -> 0 | I19: =VLOOKUP($D19,specs!$K$5:$L$19,2)*IF($E$1="m",$D20,($D20*0.3048))/1000 -> 0 | J19: =VLOOKUP($D19,specs!$K$5:$L$19,2)*IF($E$1="m",$D20,($D20*0.3048))/1000 -> 0 | K19: =VLOOKUP($D19,specs!$K$5:$L$19,2)*IF($E$1="m",$D20,($D20*0.3048))/1000 -> 0 | L19: =VLOOKUP($D19,specs!$K$5:$L$19,2)*IF($E$1="m",$D20,($D20*0.3048))/1000 -> 0 | M19: =VLOOKUP($D19,specs!$K$5:$L$19,2)*IF($E$1="m",$D20,($D20*0.3048))/1000 -> 0 | N19: =VLOOKUP($D19,specs!$K$5:$L$19,2)*IF($E$1="m",$D20,($D20*0.3048))/1000 -> 0 | O19: =VLOOKUP($D19,specs!$K$5:$L$19,2)*IF($E$1="m",$D20,($D20*0.3048))/1000 -> 0
C20: span length,m | D20: 0 | E20: 0 | F20: =VLOOKUP($D21,specs!$D$5:$H$17,4)/F21*1.03*$E21+F23 -> 0 | G20: =VLOOKUP($D21,specs!$D$5:$H$17,4)/G21*1.03*$E21+G23 -> 0 | H20: =VLOOKUP($D21,specs!$D$5:$H$17,4)/H21*1.03*$E21+H23 -> 0 | I20: =VLOOKUP($D21,specs!$D$5:$H$17,4)/I21*1.03*$E21+I23 -> 0 | J20: =VLOOKUP($D21,specs!$D$5:$H$17,4)/J21*1.03*$E21+J23 -> 0 | K20: =VLOOKUP($D21,specs!$D$5:$H$17,4)/K21*1.03*$E21+K23 -> 0 | L20: =VLOOKUP($D21,specs!$D$5:$H$17,4)/L21*1.03*$E21+L23 -> 0 | M20: =VLOOKUP($D21,specs!$D$5:$H$17,4)/M21*1.03*$E21+M23 -> 0 | N20: =VLOOKUP($D21,specs!$D$5:$H$17,4)/N21*1.03*$E21+N23 -> 0 | O20: =VLOOKUP($D21,specs!$D$5:$H$17,4)/O21*1.03*$E21+O23 -> 0
C21: amplifier | D21: load | E21: 0 | F21: =B2 -> 63.09199797 | G21: =F21-(F3-$B$2) -> 62.18691964 | H21: 62.17374699 | I21: 62.17355244 | J21: 62.17354957 | K21: 62.17354952 | L21: 62.17354952 | M21: 62.17354952 | N21: 62.17354952 | O21: 62.17354952
F22: =IF(F21<0,1,0) -> 0 | G22: =IF(G21<0,1,0) -> 0 | H22: 0 | I22: 0 | J22: 0 | K22: 0 | L22: 0 | M22: 0 | N22: 0 | O22: 0
C24: User added Branch
M27: =O21 -> 62.17354952
F34: Main Branch Net31

Sheet Net22 (hidden)
B1: =SUM(F22:O22) -> 0 | D1: =IF(O21<'AUX2'!B6,1,0) -> 0 | E1: =+'AUX2'!J5 -> m
B2: =+'AUX2'!M10 -> 62.21714747 | C2: U start, V | D2: =+O5*1 -> 0.4984610113 | F2: 1 | G2: 2 | H2: 3 | I2: 4 | J2: 5 | K2: 6 | L2: 7 | M2: 8 | N2: 9 | O2: iteration10
E3: mult. | F3: =F6+F5*F4 -> 62.44266524 | G3: =G6+G5*G4 -> 62.21796788 | H3: 62.21715047 | I3: 62.21714748 | J3: 62.21714747 | K3: 62.21714747 | L3: 62.21714747 | M3: 62.21714747 | N3: 62.21714747 | O3: 62.21714747
C4: cable type | D4: QR540 | E4: 0 | F4: =VLOOKUP($D4,specs!$K$5:$L$19,2)*IF($E$1="m",$D5,($D5*0.3048))/1000 -> 0.45408 | G4: =VLOOKUP($D4,specs!$K$5:$L$19,2)*IF($E$1="m",$D5,($D5*0.3048))/1000 -> 0.45408 | H4: =VLOOKUP($D4,specs!$K$5:$L$19,2)*IF($E$1="m",$D5,($D5*0.3048))/1000 -> 0.45408 | I4: =VLOOKUP($D4,specs!$K$5:$L$19,2)*IF($E$1="m",$D5,($D5*0.3048))/1000 -> 0.45408 | J4: =VLOOKUP($D4,specs!$K$5:$L$19,2)*IF($E$1="m",$D5,($D5*0.3048))/1000 -> 0.45408 | K4: =VLOOKUP($D4,specs!$K$5:$L$19,2)*IF($E$1="m",$D5,($D5*0.3048))/1000 -> 0.45408 | L4: =VLOOKUP($D4,specs!$K$5:$L$19,2)*IF($E$1="m",$D5,($D5*0.3048))/1000 -> 0.45408 | M4: =VLOOKUP($D4,specs!$K$5:$L$19,2)*IF($E$1="m",$D5,($D5*0.3048))/1000 -> 0.45408 | N4: =VLOOKUP($D4,specs!$K$5:$L$19,2)*IF($E$1="m",$D5,($D5*0.3048))/1000 -> 0.45408 | O4: =VLOOKUP($D4,specs!$K$5:$L$19,2)*IF($E$1="m",$D5,($D5*0.3048))/1000 -> 0.45408
C5: span length,m | D5: 86 | E5: 0 | F5: =VLOOKUP($D6,specs!$D$5:$H$17,4)/F6*1.03*$E6+F8 -> 0.4966476487 | G5: =VLOOKUP($D6,specs!$D$5:$H$17,4)/G6*1.03*$E6+G8 -> 0.4984543905 | H5: =VLOOKUP($D6,specs!$D$5:$H$17,4)/H6*1.03*$E6+H8 -> 0.4984609872 | I5: =VLOOKUP($D6,specs!$D$5:$H$17,4)/I6*1.03*$E6+I8 -> 0.4984610113 | J5: =VLOOKUP($D6,specs!$D$5:$H$17,4)/J6*1.03*$E6+J8 -> 0.4984610113 | K5: =VLOOKUP($D6,specs!$D$5:$H$17,4)/K6*1.03*$E6+K8 -> 0.4984610113 | L5: =VLOOKUP($D6,specs!$D$5:$H$17,4)/L6*1.03*$E6+L8 -> 0.4984610113 | M5: =VLOOKUP($D6,specs!$D$5:$H$17,4)/M6*1.03*$E6+M8 -> 0.4984610113 | N5: =VLOOKUP($D6,specs!$D$5:$H$17,4)/N6*1.03*$E6+N8 -> 0.4984610113 | O5: =VLOOKUP($D6,specs!$D$5:$H$17,4)/O6*1.03*$E6+O8 -> 0.4984610113
C6: amplifier | D6: LEX | E6: 1 | F6: =F9+F8*F7 -> 62.21714747 | G6: =G9+G8*G7 -> 61.99162971 | H6: 61.9908093 | I6: 61.99080631 | J6: 61.9908063 | K6: 61.9908063 | L6: 61.9908063 | M6: 61.9908063 | N6: 61.9908063 | O6: 61.9908063
C7: cable type | D7: cable | E7: 0 | F7: =VLOOKUP($D7,specs!$K$5:$L$19,2)*IF($E$1="m",$D8,($D8*0.3048))/1000 -> 0 | G7: =VLOOKUP($D7,specs!$K$5:$L$19,2)*IF($E$1="m",$D8,($D8*0.3048))/1000 -> 0 | H7: =VLOOKUP($D7,specs!$K$5:$L$19,2)*IF($E$1="m",$D8,($D8*0.3048))/1000 -> 0 | I7: =VLOOKUP($D7,specs!$K$5:$L$19,2)*IF($E$1="m",$D8,($D8*0.3048))/1000 -> 0 | J7: =VLOOKUP($D7,specs!$K$5:$L$19,2)*IF($E$1="m",$D8,($D8*0.3048))/1000 -> 0 | K7: =VLOOKUP($D7,specs!$K$5:$L$19,2)*IF($E$1="m",$D8,($D8*0.3048))/1000 -> 0 | L7: =VLOOKUP($D7,specs!$K$5:$L$19,2)*IF($E$1="m",$D8,($D8*0.3048))/1000 -> 0 | M7: =VLOOKUP($D7,specs!$K$5:$L$19,2)*IF($E$1="m",$D8,($D8*0.3048))/1000 -> 0 | N7: =VLOOKUP($D7,specs!$K$5:$L$19,2)*IF($E$1="m",$D8,($D8*0.3048))/1000 -> 0 | O7: =VLOOKUP($D7,specs!$K$5:$L$19,2)*IF($E$1="m",$D8,($D8*0.3048))/1000 -> 0
C8: span length,m | D8: 0 | E8: 0 | F8: =VLOOKUP($D9,specs!$D$5:$H$17,4)/F9*1.03*$E9+F11 -> 0 | G8: =VLOOKUP($D9,specs!$D$5:$H$17,4)/G9*1.03*$E9+G11 -> 0 | H8: =VLOOKUP($D9,specs!$D$5:$H$17,4)/H9*1.03*$E9+H11 -> 0 | I8: =VLOOKUP($D9,specs!$D$5:$H$17,4)/I9*1.03*$E9+I11 -> 0 | J8: =VLOOKUP($D9,specs!$D$5:$H$17,4)/J9*1.03*$E9+J11 -> 0 | K8: =VLOOKUP($D9,specs!$D$5:$H$17,4)/K9*1.03*$E9+K11 -> 0 | L8: =VLOOKUP($D9,specs!$D$5:$H$17,4)/L9*1.03*$E9+L11 -> 0 | M8: =VLOOKUP($D9,specs!$D$5:$H$17,4)/M9*1.03*$E9+M11 -> 0 | N8: =VLOOKUP($D9,specs!$D$5:$H$17,4)/N9*1.03*$E9+N11 -> 0 | O8: =VLOOKUP($D9,specs!$D$5:$H$17,4)/O9*1.03*$E9+O11 -> 0
C9: amplifier | D9: load | E9: 0 | F9: =F12+F11*F10 -> 62.21714747 | G9: =G12+G11*G10 -> 61.99162971 | H9: 61.9908093 | I9: 61.99080631 | J9: 61.9908063 | K9: 61.9908063 | L9: 61.9908063 | M9: 61.9908063 | N9: 61.9908063 | O9: 61.9908063
C10: cable type | D10: cable | E10: 0 | F10: =VLOOKUP($D10,specs!$K$5:$L$19,2)*IF($E$1="m",$D11,($D11*0.3048))/1000 -> 0 | G10: =VLOOKUP($D10,specs!$K$5:$L$19,2)*IF($E$1="m",$D11,($D11*0.3048))/1000 -> 0 | H10: =VLOOKUP($D10,specs!$K$5:$L$19,2)*IF($E$1="m",$D11,($D11*0.3048))/1000 -> 0 | I10: =VLOOKUP($D10,specs!$K$5:$L$19,2)*IF($E$1="m",$D11,($D11*0.3048))/1000 -> 0 | J10: =VLOOKUP($D10,specs!$K$5:$L$19,2)*IF($E$1="m",$D11,($D11*0.3048))/1000 -> 0 | K10: =VLOOKUP($D10,specs!$K$5:$L$19,2)*IF($E$1="m",$D11,($D11*0.3048))/1000 -> 0 | L10: =VLOOKUP($D10,specs!$K$5:$L$19,2)*IF($E$1="m",$D11,($D11*0.3048))/1000 -> 0 | M10: =VLOOKUP($D10,specs!$K$5:$L$19,2)*IF($E$1="m",$D11,($D11*0.3048))/1000 -> 0 | N10: =VLOOKUP($D10,specs!$K$5:$L$19,2)*IF($E$1="m",$D11,($D11*0.3048))/1000 -> 0 | O10: =VLOOKUP($D10,specs!$K$5:$L$19,2)*IF($E$1="m",$D11,($D11*0.3048))/1000 -> 0
C11: span length,m | D11: 0 | E11: 0 | F11: =VLOOKUP($D12,specs!$D$5:$H$17,4)/F12*1.03*$E12+F14 -> 0 | G11: =VLOOKUP($D12,specs!$D$5:$H$17,4)/G12*1.03*$E12+G14 -> 0 | H11: =VLOOKUP($D12,specs!$D$5:$H$17,4)/H12*1.03*$E12+H14 -> 0 | I11: =VLOOKUP($D12,specs!$D$5:$H$17,4)/I12*1.03*$E12+I14 -> 0 | J11: =VLOOKUP($D12,specs!$D$5:$H$17,4)/J12*1.03*$E12+J14 -> 0 | K11: =VLOOKUP($D12,specs!$D$5:$H$17,4)/K12*1.03*$E12+K14 -> 0 | L11: =VLOOKUP($D12,specs!$D$5:$H$17,4)/L12*1.03*$E12+L14 -> 0 | M11: =VLOOKUP($D12,specs!$D$5:$H$17,4)/M12*1.03*$E12+M14 -> 0 | N11: =VLOOKUP($D12,specs!$D$5:$H$17,4)/N12*1.03*$E12+N14 -> 0 | O11: =VLOOKUP($D12,specs!$D$5:$H$17,4)/O12*1.03*$E12+O14 -> 0
C12: amplifier | D12: load | E12: 0 | F12: =F15+F14*F13 -> 62.21714747 | G12: =G15+G14*G13 -> 61.99162971 | H12: 61.9908093 | I12: 61.99080631 | J12: 61.9908063 | K12: 61.9908063 | L12: 61.9908063 | M12: 61.9908063 | N12: 61.9908063 | O12: 61.9908063
C13: cable type | D13: cable | E13: 0 | F13: =VLOOKUP($D13,specs!$K$5:$L$19,2)*IF($E$1="m",$D14,($D14*0.3048))/1000 -> 0 | G13: =VLOOKUP($D13,specs!$K$5:$L$19,2)*IF($E$1="m",$D14,($D14*0.3048))/1000 -> 0 | H13: =VLOOKUP($D13,specs!$K$5:$L$19,2)*IF($E$1="m",$D14,($D14*0.3048))/1000 -> 0 | I13: =VLOOKUP($D13,specs!$K$5:$L$19,2)*IF($E$1="m",$D14,($D14*0.3048))/1000 -> 0 | J13: =VLOOKUP($D13,specs!$K$5:$L$19,2)*IF($E$1="m",$D14,($D14*0.3048))/1000 -> 0 | K13: =VLOOKUP($D13,specs!$K$5:$L$19,2)*IF($E$1="m",$D14,($D14*0.3048))/1000 -> 0 | L13: =VLOOKUP($D13,specs!$K$5:$L$19,2)*IF($E$1="m",$D14,($D14*0.3048))/1000 -> 0 | M13: =VLOOKUP($D13,specs!$K$5:$L$19,2)*IF($E$1="m",$D14,($D14*0.3048))/1000 -> 0 | N13: =VLOOKUP($D13,specs!$K$5:$L$19,2)*IF($E$1="m",$D14,($D14*0.3048))/1000 -> 0 | O13: =VLOOKUP($D13,specs!$K$5:$L$19,2)*IF($E$1="m",$D14,($D14*0.3048))/1000 -> 0
C14: span length,m | D14: 0 | E14: 0 | F14: =VLOOKUP($D15,specs!$D$5:$H$17,4)/F15*1.03*$E15+F17 -> 0 | G14: =VLOOKUP($D15,specs!$D$5:$H$17,4)/G15*1.03*$E15+G17 -> 0 | H14: =VLOOKUP($D15,specs!$D$5:$H$17,4)/H15*1.03*$E15+H17 -> 0 | I14: =VLOOKUP($D15,specs!$D$5:$H$17,4)/I15*1.03*$E15+I17 -> 0 | J14: =VLOOKUP($D15,specs!$D$5:$H$17,4)/J15*1.03*$E15+J17 -> 0 | K14: =VLOOKUP($D15,specs!$D$5:$H$17,4)/K15*1.03*$E15+K17 -> 0 | L14: =VLOOKUP($D15,specs!$D$5:$H$17,4)/L15*1.03*$E15+L17 -> 0 | M14: =VLOOKUP($D15,specs!$D$5:$H$17,4)/M15*1.03*$E15+M17 -> 0 | N14: =VLOOKUP($D15,specs!$D$5:$H$17,4)/N15*1.03*$E15+N17 -> 0 | O14: =VLOOKUP($D15,specs!$D$5:$H$17,4)/O15*1.03*$E15+O17 -> 0
C15: amplifier | D15: load | E15: 0 | F15: =F18+F17*F16 -> 62.21714747 | G15: =G18+G17*G16 -> 61.99162971 | H15: 61.9908093 | I15: 61.99080631 | J15: 61.9908063 | K15: 61.9908063 | L15: 61.9908063 | M15: 61.9908063 | N15: 61.9908063 | O15: 61.9908063
C16: cable type | D16: cable | E16: 0 | F16: =VLOOKUP($D16,specs!$K$5:$L$19,2)*IF($E$1="m",$D17,($D17*0.3048))/1000 -> 0 | G16: =VLOOKUP($D16,specs!$K$5:$L$19,2)*IF($E$1="m",$D17,($D17*0.3048))/1000 -> 0 | H16: =VLOOKUP($D16,specs!$K$5:$L$19,2)*IF($E$1="m",$D17,($D17*0.3048))/1000 -> 0 | I16: =VLOOKUP($D16,specs!$K$5:$L$19,2)*IF($E$1="m",$D17,($D17*0.3048))/1000 -> 0 | J16: =VLOOKUP($D16,specs!$K$5:$L$19,2)*IF($E$1="m",$D17,($D17*0.3048))/1000 -> 0 | K16: =VLOOKUP($D16,specs!$K$5:$L$19,2)*IF($E$1="m",$D17,($D17*0.3048))/1000 -> 0 | L16: =VLOOKUP($D16,specs!$K$5:$L$19,2)*IF($E$1="m",$D17,($D17*0.3048))/1000 -> 0 | M16: =VLOOKUP($D16,specs!$K$5:$L$19,2)*IF($E$1="m",$D17,($D17*0.3048))/1000 -> 0 | N16: =VLOOKUP($D16,specs!$K$5:$L$19,2)*IF($E$1="m",$D17,($D17*0.3048))/1000 -> 0 | O16: =VLOOKUP($D16,specs!$K$5:$L$19,2)*IF($E$1="m",$D17,($D17*0.3048))/1000 -> 0
C17: span length,m | D17: 0 | E17: 0 | F17: =VLOOKUP($D18,specs!$D$5:$H$17,4)/F18*1.03*$E18+F20 -> 0 | G17: =VLOOKUP($D18,specs!$D$5:$H$17,4)/G18*1.03*$E18+G20 -> 0 | H17: =VLOOKUP($D18,specs!$D$5:$H$17,4)/H18*1.03*$E18+H20 -> 0 | I17: =VLOOKUP($D18,specs!$D$5:$H$17,4)/I18*1.03*$E18+I20 -> 0 | J17: =VLOOKUP($D18,specs!$D$5:$H$17,4)/J18*1.03*$E18+J20 -> 0 | K17: =VLOOKUP($D18,specs!$D$5:$H$17,4)/K18*1.03*$E18+K20 -> 0 | L17: =VLOOKUP($D18,specs!$D$5:$H$17,4)/L18*1.03*$E18+L20 -> 0 | M17: =VLOOKUP($D18,specs!$D$5:$H$17,4)/M18*1.03*$E18+M20 -> 0 | N17: =VLOOKUP($D18,specs!$D$5:$H$17,4)/N18*1.03*$E18+N20 -> 0 | O17: =VLOOKUP($D18,specs!$D$5:$H$17,4)/O18*1.03*$E18+O20 -> 0
C18: amplifier | D18: load | E18: 0 | F18: =F21+F20*F19 -> 62.21714747 | G18: =G21+G20*G19 -> 61.99162971 | H18: 61.9908093 | I18: 61.99080631 | J18: 61.9908063 | K18: 61.9908063 | L18: 61.9908063 | M18: 61.9908063 | N18: 61.9908063 | O18: 61.9908063
C19: cable type | D19: cable | E19: 0 | F19: =VLOOKUP($D19,specs!$K$5:$L$19,2)*IF($E$1="m",$D20,($D20*0.3048))/1000 -> 0 | G19: =VLOOKUP($D19,specs!$K$5:$L$19,2)*IF($E$1="m",$D20,($D20*0.3048))/1000 -> 0 | H19: =VLOOKUP($D19,specs!$K$5:$L$19,2)*IF($E$1="m",$D20,($D20*0.3048))/1000 -> 0 | I19: =VLOOKUP($D19,specs!$K$5:$L$19,2)*IF($E$1="m",$D20,($D20*0.3048))/1000 -> 0 | J19: =VLOOKUP($D19,specs!$K$5:$L$19,2)*IF($E$1="m",$D20,($D20*0.3048))/1000 -> 0 | K19: =VLOOKUP($D19,specs!$K$5:$L$19,2)*IF($E$1="m",$D20,($D20*0.3048))/1000 -> 0 | L19: =VLOOKUP($D19,specs!$K$5:$L$19,2)*IF($E$1="m",$D20,($D20*0.3048))/1000 -> 0 | M19: =VLOOKUP($D19,specs!$K$5:$L$19,2)*IF($E$1="m",$D20,($D20*0.3048))/1000 -> 0 | N19: =VLOOKUP($D19,specs!$K$5:$L$19,2)*IF($E$1="m",$D20,($D20*0.3048))/1000 -> 0 | O19: =VLOOKUP($D19,specs!$K$5:$L$19,2)*IF($E$1="m",$D20,($D20*0.3048))/1000 -> 0
C20: span length,m | D20: 0 | E20: 0 | F20: =VLOOKUP($D21,specs!$D$5:$H$17,4)/F21*1.03*$E21+F23 -> 0 | G20: =VLOOKUP($D21,specs!$D$5:$H$17,4)/G21*1.03*$E21+G23 -> 0 | H20: =VLOOKUP($D21,specs!$D$5:$H$17,4)/H21*1.03*$E21+H23 -> 0 | I20: =VLOOKUP($D21,specs!$D$5:$H$17,4)/I21*1.03*$E21+I23 -> 0 | J20: =VLOOKUP($D21,specs!$D$5:$H$17,4)/J21*1.03*$E21+J23 -> 0 | K20: =VLOOKUP($D21,specs!$D$5:$H$17,4)/K21*1.03*$E21+K23 -> 0 | L20: =VLOOKUP($D21,specs!$D$5:$H$17,4)/L21*1.03*$E21+L23 -> 0 | M20: =VLOOKUP($D21,specs!$D$5:$H$17,4)/M21*1.03*$E21+M23 -> 0 | N20: =VLOOKUP($D21,specs!$D$5:$H$17,4)/N21*1.03*$E21+N23 -> 0 | O20: =VLOOKUP($D21,specs!$D$5:$H$17,4)/O21*1.03*$E21+O23 -> 0
C21: amplifier | D21: load | E21: 0 | F21: =B2 -> 62.21714747 | G21: =F21-(F3-$B$2) -> 61.99162971 | H21: 61.9908093 | I21: 61.99080631 | J21: 61.9908063 | K21: 61.9908063 | L21: 61.9908063 | M21: 61.9908063 | N21: 61.9908063 | O21: 61.9908063
F22: =IF(F21<0,1,0) -> 0 | G22: =IF(G21<0,1,0) -> 0 | H22: 0 | I22: 0 | J22: 0 | K22: 0 | L22: 0 | M22: 0 | N22: 0 | O22: 0
C24: User added Branch
M27: =O21 -> 61.9908063
F34: Main Branch Net22

Sheet Net21 (hidden)
B1: =SUM(F22:O22) -> 0 | D1: =IF(O21<'AUX2'!B6,1,0) -> 0 | E1: =+'AUX2'!J5 -> m
B2: =+'AUX2'!M9 -> 62.21714747 | C2: U start, V | D2: =+O5*1 -> 0.4986939054 | F2: 1 | G2: 2 | H2: 3 | I2: 4 | J2: 5 | K2: 6 | L2: 7 | M2: 8 | N2: 9 | O2: iteration10
E3: mult. | F3: =F6+F5*F4 -> 62.47139134 | G3: =G6+G5*G4 -> 62.21819068 | H3: 62.21715177 | I3: 62.21714749 | J3: 62.21714747 | K3: 62.21714747 | L3: 62.21714747 | M3: 62.21714747 | N3: 62.21714747 | O3: 62.21714747
C4: cable type | D4: QR860 | E4: 0 | F4: =VLOOKUP($D4,specs!$K$5:$L$19,2)*IF($E$1="m",$D5,($D5*0.3048))/1000 -> 0.51192 | G4: =VLOOKUP($D4,specs!$K$5:$L$19,2)*IF($E$1="m",$D5,($D5*0.3048))/1000 -> 0.51192 | H4: =VLOOKUP($D4,specs!$K$5:$L$19,2)*IF($E$1="m",$D5,($D5*0.3048))/1000 -> 0.51192 | I4: =VLOOKUP($D4,specs!$K$5:$L$19,2)*IF($E$1="m",$D5,($D5*0.3048))/1000 -> 0.51192 | J4: =VLOOKUP($D4,specs!$K$5:$L$19,2)*IF($E$1="m",$D5,($D5*0.3048))/1000 -> 0.51192 | K4: =VLOOKUP($D4,specs!$K$5:$L$19,2)*IF($E$1="m",$D5,($D5*0.3048))/1000 -> 0.51192 | L4: =VLOOKUP($D4,specs!$K$5:$L$19,2)*IF($E$1="m",$D5,($D5*0.3048))/1000 -> 0.51192 | M4: =VLOOKUP($D4,specs!$K$5:$L$19,2)*IF($E$1="m",$D5,($D5*0.3048))/1000 -> 0.51192 | N4: =VLOOKUP($D4,specs!$K$5:$L$19,2)*IF($E$1="m",$D5,($D5*0.3048))/1000 -> 0.51192 | O4: =VLOOKUP($D4,specs!$K$5:$L$19,2)*IF($E$1="m",$D5,($D5*0.3048))/1000 -> 0.51192
C5: span length,m | D5: 216 | E5: 0 | F5: =VLOOKUP($D6,specs!$D$5:$H$17,4)/F6*1.03*$E6+F8 -> 0.4966476487 | G5: =VLOOKUP($D6,specs!$D$5:$H$17,4)/G6*1.03*$E6+G8 -> 0.4986854747 | H5: =VLOOKUP($D6,specs!$D$5:$H$17,4)/H6*1.03*$E6+H8 -> 0.4986938707 | I5: =VLOOKUP($D6,specs!$D$5:$H$17,4)/I6*1.03*$E6+I8 -> 0.4986939053 | J5: =VLOOKUP($D6,specs!$D$5:$H$17,4)/J6*1.03*$E6+J8 -> 0.4986939054 | K5: =VLOOKUP($D6,specs!$D$5:$H$17,4)/K6*1.03*$E6+K8 -> 0.4986939054 | L5: =VLOOKUP($D6,specs!$D$5:$H$17,4)/L6*1.03*$E6+L8 -> 0.4986939054 | M5: =VLOOKUP($D6,specs!$D$5:$H$17,4)/M6*1.03*$E6+M8 -> 0.4986939054 | N5: =VLOOKUP($D6,specs!$D$5:$H$17,4)/N6*1.03*$E6+N8 -> 0.4986939054 | O5: =VLOOKUP($D6,specs!$D$5:$H$17,4)/O6*1.03*$E6+O8 -> 0.4986939054
C6: amplifier | D6: LEX | E6: 1 | F6: =F9+F8*F7 -> 62.21714747 | G6: =G9+G8*G7 -> 61.96290361 | H6: 61.9618604 | I6: 61.96185611 | J6: 61.96185609 | K6: 61.96185609 | L6: 61.96185609 | M6: 61.96185609 | N6: 61.96185609 | O6: 61.96185609
C7: cable type | D7: cable | E7: 0 | F7: =VLOOKUP($D7,specs!$K$5:$L$19,2)*IF($E$1="m",$D8,($D8*0.3048))/1000 -> 0 | G7: =VLOOKUP($D7,specs!$K$5:$L$19,2)*IF($E$1="m",$D8,($D8*0.3048))/1000 -> 0 | H7: =VLOOKUP($D7,specs!$K$5:$L$19,2)*IF($E$1="m",$D8,($D8*0.3048))/1000 -> 0 | I7: =VLOOKUP($D7,specs!$K$5:$L$19,2)*IF($E$1="m",$D8,($D8*0.3048))/1000 -> 0 | J7: =VLOOKUP($D7,specs!$K$5:$L$19,2)*IF($E$1="m",$D8,($D8*0.3048))/1000 -> 0 | K7: =VLOOKUP($D7,specs!$K$5:$L$19,2)*IF($E$1="m",$D8,($D8*0.3048))/1000 -> 0 | L7: =VLOOKUP($D7,specs!$K$5:$L$19,2)*IF($E$1="m",$D8,($D8*0.3048))/1000 -> 0 | M7: =VLOOKUP($D7,specs!$K$5:$L$19,2)*IF($E$1="m",$D8,($D8*0.3048))/1000 -> 0 | N7: =VLOOKUP($D7,specs!$K$5:$L$19,2)*IF($E$1="m",$D8,($D8*0.3048))/1000 -> 0 | O7: =VLOOKUP($D7,specs!$K$5:$L$19,2)*IF($E$1="m",$D8,($D8*0.3048))/1000 -> 0
C8: span length,m | D8: 0 | E8: 0 | F8: =VLOOKUP($D9,specs!$D$5:$H$17,4)/F9*1.03*$E9+F11 -> 0 | G8: =VLOOKUP($D9,specs!$D$5:$H$17,4)/G9*1.03*$E9+G11 -> 0 | H8: =VLOOKUP($D9,specs!$D$5:$H$17,4)/H9*1.03*$E9+H11 -> 0 | I8: =VLOOKUP($D9,specs!$D$5:$H$17,4)/I9*1.03*$E9+I11 -> 0 | J8: =VLOOKUP($D9,specs!$D$5:$H$17,4)/J9*1.03*$E9+J11 -> 0 | K8: =VLOOKUP($D9,specs!$D$5:$H$17,4)/K9*1.03*$E9+K11 -> 0 | L8: =VLOOKUP($D9,specs!$D$5:$H$17,4)/L9*1.03*$E9+L11 -> 0 | M8: =VLOOKUP($D9,specs!$D$5:$H$17,4)/M9*1.03*$E9+M11 -> 0 | N8: =VLOOKUP($D9,specs!$D$5:$H$17,4)/N9*1.03*$E9+N11 -> 0 | O8: =VLOOKUP($D9,specs!$D$5:$H$17,4)/O9*1.03*$E9+O11 -> 0
C9: amplifier | D9: load | E9: 0 | F9: =F12+F11*F10 -> 62.21714747 | G9: =G12+G11*G10 -> 61.96290361 | H9: 61.9618604 | I9: 61.96185611 | J9: 61.96185609 | K9: 61.96185609 | L9: 61.96185609 | M9: 61.96185609 | N9: 61.96185609 | O9: 61.96185609
C10: cable type | D10: cable | E10: 0 | F10: =VLOOKUP($D10,specs!$K$5:$L$19,2)*IF($E$1="m",$D11,($D11*0.3048))/1000 -> 0 | G10: =VLOOKUP($D10,specs!$K$5:$L$19,2)*IF($E$1="m",$D11,($D11*0.3048))/1000 -> 0 | H10: =VLOOKUP($D10,specs!$K$5:$L$19,2)*IF($E$1="m",$D11,($D11*0.3048))/1000 -> 0 | I10: =VLOOKUP($D10,specs!$K$5:$L$19,2)*IF($E$1="m",$D11,($D11*0.3048))/1000 -> 0 | J10: =VLOOKUP($D10,specs!$K$5:$L$19,2)*IF($E$1="m",$D11,($D11*0.3048))/1000 -> 0 | K10: =VLOOKUP($D10,specs!$K$5:$L$19,2)*IF($E$1="m",$D11,($D11*0.3048))/1000 -> 0 | L10: =VLOOKUP($D10,specs!$K$5:$L$19,2)*IF($E$1="m",$D11,($D11*0.3048))/1000 -> 0 | M10: =VLOOKUP($D10,specs!$K$5:$L$19,2)*IF($E$1="m",$D11,($D11*0.3048))/1000 -> 0 | N10: =VLOOKUP($D10,specs!$K$5:$L$19,2)*IF($E$1="m",$D11,($D11*0.3048))/1000 -> 0 | O10: =VLOOKUP($D10,specs!$K$5:$L$19,2)*IF($E$1="m",$D11,($D11*0.3048))/1000 -> 0
C11: span length,m | D11: 0 | E11: 0 | F11: =VLOOKUP($D12,specs!$D$5:$H$17,4)/F12*1.03*$E12+F14 -> 0 | G11: =VLOOKUP($D12,specs!$D$5:$H$17,4)/G12*1.03*$E12+G14 -> 0 | H11: =VLOOKUP($D12,specs!$D$5:$H$17,4)/H12*1.03*$E12+H14 -> 0 | I11: =VLOOKUP($D12,specs!$D$5:$H$17,4)/I12*1.03*$E12+I14 -> 0 | J11: =VLOOKUP($D12,specs!$D$5:$H$17,4)/J12*1.03*$E12+J14 -> 0 | K11: =VLOOKUP($D12,specs!$D$5:$H$17,4)/K12*1.03*$E12+K14 -> 0 | L11: =VLOOKUP($D12,specs!$D$5:$H$17,4)/L12*1.03*$E12+L14 -> 0 | M11: =VLOOKUP($D12,specs!$D$5:$H$17,4)/M12*1.03*$E12+M14 -> 0 | N11: =VLOOKUP($D12,specs!$D$5:$H$17,4)/N12*1.03*$E12+N14 -> 0 | O11: =VLOOKUP($D12,specs!$D$5:$H$17,4)/O12*1.03*$E12+O14 -> 0
C12: amplifier | D12: load | E12: 0 | F12: =F15+F14*F13 -> 62.21714747 | G12: =G15+G14*G13 -> 61.96290361 | H12: 61.9618604 | I12: 61.96185611 | J12: 61.96185609 | K12: 61.96185609 | L12: 61.96185609 | M12: 61.96185609 | N12: 61.96185609 | O12: 61.96185609
C13: cable type | D13: cable | E13: 0 | F13: =VLOOKUP($D13,specs!$K$5:$L$19,2)*IF($E$1="m",$D14,($D14*0.3048))/1000 -> 0 | G13: =VLOOKUP($D13,specs!$K$5:$L$19,2)*IF($E$1="m",$D14,($D14*0.3048))/1000 -> 0 | H13: =VLOOKUP($D13,specs!$K$5:$L$19,2)*IF($E$1="m",$D14,($D14*0.3048))/1000 -> 0 | I13: =VLOOKUP($D13,specs!$K$5:$L$19,2)*IF($E$1="m",$D14,($D14*0.3048))/1000 -> 0 | J13: =VLOOKUP($D13,specs!$K$5:$L$19,2)*IF($E$1="m",$D14,($D14*0.3048))/1000 -> 0 | K13: =VLOOKUP($D13,specs!$K$5:$L$19,2)*IF($E$1="m",$D14,($D14*0.3048))/1000 -> 0 | L13: =VLOOKUP($D13,specs!$K$5:$L$19,2)*IF($E$1="m",$D14,($D14*0.3048))/1000 -> 0 | M13: =VLOOKUP($D13,specs!$K$5:$L$19,2)*IF($E$1="m",$D14,($D14*0.3048))/1000 -> 0 | N13: =VLOOKUP($D13,specs!$K$5:$L$19,2)*IF($E$1="m",$D14,($D14*0.3048))/1000 -> 0 | O13: =VLOOKUP($D13,specs!$K$5:$L$19,2)*IF($E$1="m",$D14,($D14*0.3048))/1000 -> 0
C14: span length,m | D14: 0 | E14: 0 | F14: =VLOOKUP($D15,specs!$D$5:$H$17,4)/F15*1.03*$E15+F17 -> 0 | G14: =VLOOKUP($D15,specs!$D$5:$H$17,4)/G15*1.03*$E15+G17 -> 0 | H14: =VLOOKUP($D15,specs!$D$5:$H$17,4)/H15*1.03*$E15+H17 -> 0 | I14: =VLOOKUP($D15,specs!$D$5:$H$17,4)/I15*1.03*$E15+I17 -> 0 | J14: =VLOOKUP($D15,specs!$D$5:$H$17,4)/J15*1.03*$E15+J17 -> 0 | K14: =VLOOKUP($D15,specs!$D$5:$H$17,4)/K15*1.03*$E15+K17 -> 0 | L14: =VLOOKUP($D15,specs!$D$5:$H$17,4)/L15*1.03*$E15+L17 -> 0 | M14: =VLOOKUP($D15,specs!$D$5:$H$17,4)/M15*1.03*$E15+M17 -> 0 | N14: =VLOOKUP($D15,specs!$D$5:$H$17,4)/N15*1.03*$E15+N17 -> 0 | O14: =VLOOKUP($D15,specs!$D$5:$H$17,4)/O15*1.03*$E15+O17 -> 0
C15: amplifier | D15: load | E15: 0 | F15: =F18+F17*F16 -> 62.21714747 | G15: =G18+G17*G16 -> 61.96290361 | H15: 61.9618604 | I15: 61.96185611 | J15: 61.96185609 | K15: 61.96185609 | L15: 61.96185609 | M15: 61.96185609 | N15: 61.96185609 | O15: 61.96185609
C16: cable type | D16: cable | E16: 0 | F16: =VLOOKUP($D16,specs!$K$5:$L$19,2)*IF($E$1="m",$D17,($D17*0.3048))/1000 -> 0 | G16: =VLOOKUP($D16,specs!$K$5:$L$19,2)*IF($E$1="m",$D17,($D17*0.3048))/1000 -> 0 | H16: =VLOOKUP($D16,specs!$K$5:$L$19,2)*IF($E$1="m",$D17,($D17*0.3048))/1000 -> 0 | I16: =VLOOKUP($D16,specs!$K$5:$L$19,2)*IF($E$1="m",$D17,($D17*0.3048))/1000 -> 0 | J16: =VLOOKUP($D16,specs!$K$5:$L$19,2)*IF($E$1="m",$D17,($D17*0.3048))/1000 -> 0 | K16: =VLOOKUP($D16,specs!$K$5:$L$19,2)*IF($E$1="m",$D17,($D17*0.3048))/1000 -> 0 | L16: =VLOOKUP($D16,specs!$K$5:$L$19,2)*IF($E$1="m",$D17,($D17*0.3048))/1000 -> 0 | M16: =VLOOKUP($D16,specs!$K$5:$L$19,2)*IF($E$1="m",$D17,($D17*0.3048))/1000 -> 0 | N16: =VLOOKUP($D16,specs!$K$5:$L$19,2)*IF($E$1="m",$D17,($D17*0.3048))/1000 -> 0 | O16: =VLOOKUP($D16,specs!$K$5:$L$19,2)*IF($E$1="m",$D17,($D17*0.3048))/1000 -> 0
C17: span length,m | D17: 0 | E17: 0 | F17: =VLOOKUP($D18,specs!$D$5:$H$17,4)/F18*1.03*$E18+F20 -> 0 | G17: =VLOOKUP($D18,specs!$D$5:$H$17,4)/G18*1.03*$E18+G20 -> 0 | H17: =VLOOKUP($D18,specs!$D$5:$H$17,4)/H18*1.03*$E18+H20 -> 0 | I17: =VLOOKUP($D18,specs!$D$5:$H$17,4)/I18*1.03*$E18+I20 -> 0 | J17: =VLOOKUP($D18,specs!$D$5:$H$17,4)/J18*1.03*$E18+J20 -> 0 | K17: =VLOOKUP($D18,specs!$D$5:$H$17,4)/K18*1.03*$E18+K20 -> 0 | L17: =VLOOKUP($D18,specs!$D$5:$H$17,4)/L18*1.03*$E18+L20 -> 0 | M17: =VLOOKUP($D18,specs!$D$5:$H$17,4)/M18*1.03*$E18+M20 -> 0 | N17: =VLOOKUP($D18,specs!$D$5:$H$17,4)/N18*1.03*$E18+N20 -> 0 | O17: =VLOOKUP($D18,specs!$D$5:$H$17,4)/O18*1.03*$E18+O20 -> 0
C18: amplifier | D18: load | E18: 0 | F18: =F21+F20*F19 -> 62.21714747 | G18: =G21+G20*G19 -> 61.96290361 | H18: 61.9618604 | I18: 61.96185611 | J18: 61.96185609 | K18: 61.96185609 | L18: 61.96185609 | M18: 61.96185609 | N18: 61.96185609 | O18: 61.96185609
C19: cable type | D19: cable | E19: 0 | F19: =VLOOKUP($D19,specs!$K$5:$L$19,2)*IF($E$1="m",$D20,($D20*0.3048))/1000 -> 0 | G19: =VLOOKUP($D19,specs!$K$5:$L$19,2)*IF($E$1="m",$D20,($D20*0.3048))/1000 -> 0 | H19: =VLOOKUP($D19,specs!$K$5:$L$19,2)*IF($E$1="m",$D20,($D20*0.3048))/1000 -> 0 | I19: =VLOOKUP($D19,specs!$K$5:$L$19,2)*IF($E$1="m",$D20,($D20*0.3048))/1000 -> 0 | J19: =VLOOKUP($D19,specs!$K$5:$L$19,2)*IF($E$1="m",$D20,($D20*0.3048))/1000 -> 0 | K19: =VLOOKUP($D19,specs!$K$5:$L$19,2)*IF($E$1="m",$D20,($D20*0.3048))/1000 -> 0 | L19: =VLOOKUP($D19,specs!$K$5:$L$19,2)*IF($E$1="m",$D20,($D20*0.3048))/1000 -> 0 | M19: =VLOOKUP($D19,specs!$K$5:$L$19,2)*IF($E$1="m",$D20,($D20*0.3048))/1000 -> 0 | N19: =VLOOKUP($D19,specs!$K$5:$L$19,2)*IF($E$1="m",$D20,($D20*0.3048))/1000 -> 0 | O19: =VLOOKUP($D19,specs!$K$5:$L$19,2)*IF($E$1="m",$D20,($D20*0.3048))/1000 -> 0
C20: span length,m | D20: 0 | E20: 0 | F20: =VLOOKUP($D21,specs!$D$5:$H$17,4)/F21*1.03*$E21+F23 -> 0 | G20: =VLOOKUP($D21,specs!$D$5:$H$17,4)/G21*1.03*$E21+G23 -> 0 | H20: =VLOOKUP($D21,specs!$D$5:$H$17,4)/H21*1.03*$E21+H23 -> 0 | I20: =VLOOKUP($D21,specs!$D$5:$H$17,4)/I21*1.03*$E21+I23 -> 0 | J20: =VLOOKUP($D21,specs!$D$5:$H$17,4)/J21*1.03*$E21+J23 -> 0 | K20: =VLOOKUP($D21,specs!$D$5:$H$17,4)/K21*1.03*$E21+K23 -> 0 | L20: =VLOOKUP($D21,specs!$D$5:$H$17,4)/L21*1.03*$E21+L23 -> 0 | M20: =VLOOKUP($D21,specs!$D$5:$H$17,4)/M21*1.03*$E21+M23 -> 0 | N20: =VLOOKUP($D21,specs!$D$5:$H$17,4)/N21*1.03*$E21+N23 -> 0 | O20: =VLOOKUP($D21,specs!$D$5:$H$17,4)/O21*1.03*$E21+O23 -> 0
C21: amplifier | D21: load | E21: 0 | F21: =B2 -> 62.21714747 | G21: =F21-(F3-$B$2) -> 61.96290361 | H21: 61.9618604 | I21: 61.96185611 | J21: 61.96185609 | K21: 61.96185609 | L21: 61.96185609 | M21: 61.96185609 | N21: 61.96185609 | O21: 61.96185609
F22: =IF(F21<0,1,0) -> 0 | G22: =IF(G21<0,1,0) -> 0 | H22: 0 | I22: 0 | J22: 0 | K22: 0 | L22: 0 | M22: 0 | N22: 0 | O22: 0
C24: User added Branch
M27: =O21 -> 61.96185609
F34: Main Branch Net21

Sheet Net12 (hidden)
B1: =SUM(F22:O22) -> 0 | D1: =IF(O21<'AUX2'!B6,1,0) -> 0 | E1: =+'AUX2'!J5 -> m
B2: =+'AUX2'!M8 -> 61.80213258 | C2: U start, V | D2: =+O5*1 -> 1.009843621 | F2: 1 | G2: 2 | H2: 3 | I2: 4 | J2: 5 | K2: 6 | L2: 7 | M2: 8 | N2: 9 | O2: iteration10
E3: mult. | F3: =F6+F5*F4 -> 62.54289482 | G3: =G6+G5*G4 -> 61.81109322 | H3: 61.8022423 | I3: 61.80213392 | J3: 61.80213259 | K3: 61.80213258 | L3: 61.80213258 | M3: 61.80213258 | N3: 61.80213258 | O3: 61.80213258
C4: cable type | D4: QR540 | E4: 0 | F4: =VLOOKUP($D4,specs!$K$5:$L$19,2)*IF($E$1="m",$D5,($D5*0.3048))/1000 -> 0.45408 | G4: =VLOOKUP($D4,specs!$K$5:$L$19,2)*IF($E$1="m",$D5,($D5*0.3048))/1000 -> 0.45408 | H4: =VLOOKUP($D4,specs!$K$5:$L$19,2)*IF($E$1="m",$D5,($D5*0.3048))/1000 -> 0.45408 | I4: =VLOOKUP($D4,specs!$K$5:$L$19,2)*IF($E$1="m",$D5,($D5*0.3048))/1000 -> 0.45408 | J4: =VLOOKUP($D4,specs!$K$5:$L$19,2)*IF($E$1="m",$D5,($D5*0.3048))/1000 -> 0.45408 | K4: =VLOOKUP($D4,specs!$K$5:$L$19,2)*IF($E$1="m",$D5,($D5*0.3048))/1000 -> 0.45408 | L4: =VLOOKUP($D4,specs!$K$5:$L$19,2)*IF($E$1="m",$D5,($D5*0.3048))/1000 -> 0.45408 | M4: =VLOOKUP($D4,specs!$K$5:$L$19,2)*IF($E$1="m",$D5,($D5*0.3048))/1000 -> 0.45408 | N4: =VLOOKUP($D4,specs!$K$5:$L$19,2)*IF($E$1="m",$D5,($D5*0.3048))/1000 -> 0.45408 | O4: =VLOOKUP($D4,specs!$K$5:$L$19,2)*IF($E$1="m",$D5,($D5*0.3048))/1000 -> 0.45408
C5: span length,m | D5: 86 | E5: 0 | F5: =VLOOKUP($D6,specs!$D$5:$H$17,4)/F6*1.03*$E6+F8 -> 0.9976483676 | G5: =VLOOKUP($D6,specs!$D$5:$H$17,4)/G6*1.03*$E6+G8 -> 1.009694302 | H5: =VLOOKUP($D6,specs!$D$5:$H$17,4)/H6*1.03*$E6+H8 -> 1.009841792 | I5: =VLOOKUP($D6,specs!$D$5:$H$17,4)/I6*1.03*$E6+I8 -> 1.009843598 | J5: =VLOOKUP($D6,specs!$D$5:$H$17,4)/J6*1.03*$E6+J8 -> 1.00984362 | K5: =VLOOKUP($D6,specs!$D$5:$H$17,4)/K6*1.03*$E6+K8 -> 1.009843621 | L5: =VLOOKUP($D6,specs!$D$5:$H$17,4)/L6*1.03*$E6+L8 -> 1.009843621 | M5: =VLOOKUP($D6,specs!$D$5:$H$17,4)/M6*1.03*$E6+M8 -> 1.009843621 | N5: =VLOOKUP($D6,specs!$D$5:$H$17,4)/N6*1.03*$E6+N8 -> 1.009843621 | O5: =VLOOKUP($D6,specs!$D$5:$H$17,4)/O6*1.03*$E6+O8 -> 1.009843621
C6: amplifier | D6: LEX | E6: 1 | F6: =F9+F8*F7 -> 62.08988265 | G6: =G9+G8*G7 -> 61.35261123 | H6: 61.34369334 | I6: 61.34358414 | J6: 61.3435828 | K6: 61.34358279 | L6: 61.34358279 | M6: 61.34358279 | N6: 61.34358279 | O6: 61.34358279
C7: cable type | D7: QR540 | E7: 0 | F7: =VLOOKUP($D7,specs!$K$5:$L$19,2)*IF($E$1="m",$D8,($D8*0.3048))/1000 -> 0.57552 | G7: =VLOOKUP($D7,specs!$K$5:$L$19,2)*IF($E$1="m",$D8,($D8*0.3048))/1000 -> 0.57552 | H7: =VLOOKUP($D7,specs!$K$5:$L$19,2)*IF($E$1="m",$D8,($D8*0.3048))/1000 -> 0.57552 | I7: =VLOOKUP($D7,specs!$K$5:$L$19,2)*IF($E$1="m",$D8,($D8*0.3048))/1000 -> 0.57552 | J7: =VLOOKUP($D7,specs!$K$5:$L$19,2)*IF($E$1="m",$D8,($D8*0.3048))/1000 -> 0.57552 | K7: =VLOOKUP($D7,specs!$K$5:$L$19,2)*IF($E$1="m",$D8,($D8*0.3048))/1000 -> 0.57552 | L7: =VLOOKUP($D7,specs!$K$5:$L$19,2)*IF($E$1="m",$D8,($D8*0.3048))/1000 -> 0.57552 | M7: =VLOOKUP($D7,specs!$K$5:$L$19,2)*IF($E$1="m",$D8,($D8*0.3048))/1000 -> 0.57552 | N7: =VLOOKUP($D7,specs!$K$5:$L$19,2)*IF($E$1="m",$D8,($D8*0.3048))/1000 -> 0.57552 | O7: =VLOOKUP($D7,specs!$K$5:$L$19,2)*IF($E$1="m",$D8,($D8*0.3048))/1000 -> 0.57552
C8: span length,m | D8: 109 | E8: 0 | F8: =VLOOKUP($D9,specs!$D$5:$H$17,4)/F9*1.03*$E9+F11 -> 0.4999827467 | G8: =VLOOKUP($D9,specs!$D$5:$H$17,4)/G9*1.03*$E9+G11 -> 0.5060482565 | H8: =VLOOKUP($D9,specs!$D$5:$H$17,4)/H9*1.03*$E9+H11 -> 0.506122529 | I8: =VLOOKUP($D9,specs!$D$5:$H$17,4)/I9*1.03*$E9+I11 -> 0.5061234386 | J8: =VLOOKUP($D9,specs!$D$5:$H$17,4)/J9*1.03*$E9+J11 -> 0.5061234497 | K8: =VLOOKUP($D9,specs!$D$5:$H$17,4)/K9*1.03*$E9+K11 -> 0.5061234499 | L8: =VLOOKUP($D9,specs!$D$5:$H$17,4)/L9*1.03*$E9+L11 -> 0.5061234499 | M8: =VLOOKUP($D9,specs!$D$5:$H$17,4)/M9*1.03*$E9+M11 -> 0.5061234499 | N8: =VLOOKUP($D9,specs!$D$5:$H$17,4)/N9*1.03*$E9+N11 -> 0.5061234499 | O8: =VLOOKUP($D9,specs!$D$5:$H$17,4)/O9*1.03*$E9+O11 -> 0.5061234499
C9: amplifier | D9: LEX | E9: 1 | F9: =F12+F11*F10 -> 61.80213258 | G9: =G12+G11*G10 -> 61.06137034 | H9: 61.0524097 | I9: 61.05229998 | J9: 61.05229864 | K9: 61.05229862 | L9: 61.05229862 | M9: 61.05229862 | N9: 61.05229862 | O9: 61.05229862
C10: cable type | D10: cable | E10: 0 | F10: =VLOOKUP($D10,specs!$K$5:$L$19,2)*IF($E$1="m",$D11,($D11*0.3048))/1000 -> 0 | G10: =VLOOKUP($D10,specs!$K$5:$L$19,2)*IF($E$1="m",$D11,($D11*0.3048))/1000 -> 0 | H10: =VLOOKUP($D10,specs!$K$5:$L$19,2)*IF($E$1="m",$D11,($D11*0.3048))/1000 -> 0 | I10: =VLOOKUP($D10,specs!$K$5:$L$19,2)*IF($E$1="m",$D11,($D11*0.3048))/1000 -> 0 | J10: =VLOOKUP($D10,specs!$K$5:$L$19,2)*IF($E$1="m",$D11,($D11*0.3048))/1000 -> 0 | K10: =VLOOKUP($D10,specs!$K$5:$L$19,2)*IF($E$1="m",$D11,($D11*0.3048))/1000 -> 0 | L10: =VLOOKUP($D10,specs!$K$5:$L$19,2)*IF($E$1="m",$D11,($D11*0.3048))/1000 -> 0 | M10: =VLOOKUP($D10,specs!$K$5:$L$19,2)*IF($E$1="m",$D11,($D11*0.3048))/1000 -> 0 | N10: =VLOOKUP($D10,specs!$K$5:$L$19,2)*IF($E$1="m",$D11,($D11*0.3048))/1000 -> 0 | O10: =VLOOKUP($D10,specs!$K$5:$L$19,2)*IF($E$1="m",$D11,($D11*0.3048))/1000 -> 0
C11: span length,m | D11: 0 | E11: 0 | F11: =VLOOKUP($D12,specs!$D$5:$H$17,4)/F12*1.03*$E12+F14 -> 0 | G11: =VLOOKUP($D12,specs!$D$5:$H$17,4)/G12*1.03*$E12+G14 -> 0 | H11: =VLOOKUP($D12,specs!$D$5:$H$17,4)/H12*1.03*$E12+H14 -> 0 | I11: =VLOOKUP($D12,specs!$D$5:$H$17,4)/I12*1.03*$E12+I14 -> 0 | J11: =VLOOKUP($D12,specs!$D$5:$H$17,4)/J12*1.03*$E12+J14 -> 0 | K11: =VLOOKUP($D12,specs!$D$5:$H$17,4)/K12*1.03*$E12+K14 -> 0 | L11: =VLOOKUP($D12,specs!$D$5:$H$17,4)/L12*1.03*$E12+L14 -> 0 | M11: =VLOOKUP($D12,specs!$D$5:$H$17,4)/M12*1.03*$E12+M14 -> 0 | N11: =VLOOKUP($D12,specs!$D$5:$H$17,4)/N12*1.03*$E12+N14 -> 0 | O11: =VLOOKUP($D12,specs!$D$5:$H$17,4)/O12*1.03*$E12+O14 -> 0
C12: amplifier | D12: load | E12: 0 | F12: =F15+F14*F13 -> 61.80213258 | G12: =G15+G14*G13 -> 61.06137034 | H12: 61.0524097 | I12: 61.05229998 | J12: 61.05229864 | K12: 61.05229862 | L12: 61.05229862 | M12: 61.05229862 | N12: 61.05229862 | O12: 61.05229862
C13: cable type | D13: cable | E13: 0 | F13: =VLOOKUP($D13,specs!$K$5:$L$19,2)*IF($E$1="m",$D14,($D14*0.3048))/1000 -> 0 | G13: =VLOOKUP($D13,specs!$K$5:$L$19,2)*IF($E$1="m",$D14,($D14*0.3048))/1000 -> 0 | H13: =VLOOKUP($D13,specs!$K$5:$L$19,2)*IF($E$1="m",$D14,($D14*0.3048))/1000 -> 0 | I13: =VLOOKUP($D13,specs!$K$5:$L$19,2)*IF($E$1="m",$D14,($D14*0.3048))/1000 -> 0 | J13: =VLOOKUP($D13,specs!$K$5:$L$19,2)*IF($E$1="m",$D14,($D14*0.3048))/1000 -> 0 | K13: =VLOOKUP($D13,specs!$K$5:$L$19,2)*IF($E$1="m",$D14,($D14*0.3048))/1000 -> 0 | L13: =VLOOKUP($D13,specs!$K$5:$L$19,2)*IF($E$1="m",$D14,($D14*0.3048))/1000 -> 0 | M13: =VLOOKUP($D13,specs!$K$5:$L$19,2)*IF($E$1="m",$D14,($D14*0.3048))/1000 -> 0 | N13: =VLOOKUP($D13,specs!$K$5:$L$19,2)*IF($E$1="m",$D14,($D14*0.3048))/1000 -> 0 | O13: =VLOOKUP($D13,specs!$K$5:$L$19,2)*IF($E$1="m",$D14,($D14*0.3048))/1000 -> 0
C14: span length,m | D14: 0 | E14: 0 | F14: =VLOOKUP($D15,specs!$D$5:$H$17,4)/F15*1.03*$E15+F17 -> 0 | G14: =VLOOKUP($D15,specs!$D$5:$H$17,4)/G15*1.03*$E15+G17 -> 0 | H14: =VLOOKUP($D15,specs!$D$5:$H$17,4)/H15*1.03*$E15+H17 -> 0 | I14: =VLOOKUP($D15,specs!$D$5:$H$17,4)/I15*1.03*$E15+I17 -> 0 | J14: =VLOOKUP($D15,specs!$D$5:$H$17,4)/J15*1.03*$E15+J17 -> 0 | K14: =VLOOKUP($D15,specs!$D$5:$H$17,4)/K15*1.03*$E15+K17 -> 0 | L14: =VLOOKUP($D15,specs!$D$5:$H$17,4)/L15*1.03*$E15+L17 -> 0 | M14: =VLOOKUP($D15,specs!$D$5:$H$17,4)/M15*1.03*$E15+M17 -> 0 | N14: =VLOOKUP($D15,specs!$D$5:$H$17,4)/N15*1.03*$E15+N17 -> 0 | O14: =VLOOKUP($D15,specs!$D$5:$H$17,4)/O15*1.03*$E15+O17 -> 0
C15: amplifier | D15: load | E15: 0 | F15: =F18+F17*F16 -> 61.80213258 | G15: =G18+G17*G16 -> 61.06137034 | H15: 61.0524097 | I15: 61.05229998 | J15: 61.05229864 | K15: 61.05229862 | L15: 61.05229862 | M15: 61.05229862 | N15: 61.05229862 | O15: 61.05229862
C16: cable type | D16: cable | E16: 0 | F16: =VLOOKUP($D16,specs!$K$5:$L$19,2)*IF($E$1="m",$D17,($D17*0.3048))/1000 -> 0 | G16: =VLOOKUP($D16,specs!$K$5:$L$19,2)*IF($E$1="m",$D17,($D17*0.3048))/1000 -> 0 | H16: =VLOOKUP($D16,specs!$K$5:$L$19,2)*IF($E$1="m",$D17,($D17*0.3048))/1000 -> 0 | I16: =VLOOKUP($D16,specs!$K$5:$L$19,2)*IF($E$1="m",$D17,($D17*0.3048))/1000 -> 0 | J16: =VLOOKUP($D16,specs!$K$5:$L$19,2)*IF($E$1="m",$D17,($D17*0.3048))/1000 -> 0 | K16: =VLOOKUP($D16,specs!$K$5:$L$19,2)*IF($E$1="m",$D17,($D17*0.3048))/1000 -> 0 | L16: =VLOOKUP($D16,specs!$K$5:$L$19,2)*IF($E$1="m",$D17,($D17*0.3048))/1000 -> 0 | M16: =VLOOKUP($D16,specs!$K$5:$L$19,2)*IF($E$1="m",$D17,($D17*0.3048))/1000 -> 0 | N16: =VLOOKUP($D16,specs!$K$5:$L$19,2)*IF($E$1="m",$D17,($D17*0.3048))/1000 -> 0 | O16: =VLOOKUP($D16,specs!$K$5:$L$19,2)*IF($E$1="m",$D17,($D17*0.3048))/1000 -> 0
C17: span length,m | D17: 0 | E17: 0 | F17: =VLOOKUP($D18,specs!$D$5:$H$17,4)/F18*1.03*$E18+F20 -> 0 | G17: =VLOOKUP($D18,specs!$D$5:$H$17,4)/G18*1.03*$E18+G20 -> 0 | H17: =VLOOKUP($D18,specs!$D$5:$H$17,4)/H18*1.03*$E18+H20 -> 0 | I17: =VLOOKUP($D18,specs!$D$5:$H$17,4)/I18*1.03*$E18+I20 -> 0 | J17: =VLOOKUP($D18,specs!$D$5:$H$17,4)/J18*1.03*$E18+J20 -> 0 | K17: =VLOOKUP($D18,specs!$D$5:$H$17,4)/K18*1.03*$E18+K20 -> 0 | L17: =VLOOKUP($D18,specs!$D$5:$H$17,4)/L18*1.03*$E18+L20 -> 0 | M17: =VLOOKUP($D18,specs!$D$5:$H$17,4)/M18*1.03*$E18+M20 -> 0 | N17: =VLOOKUP($D18,specs!$D$5:$H$17,4)/N18*1.03*$E18+N20 -> 0 | O17: =VLOOKUP($D18,specs!$D$5:$H$17,4)/O18*1.03*$E18+O20 -> 0
C18: amplifier | D18: load | E18: 0 | F18: =F21+F20*F19 -> 61.80213258 | G18: =G21+G20*G19 -> 61.06137034 | H18: 61.0524097 | I18: 61.05229998 | J18: 61.05229864 | K18: 61.05229862 | L18: 61.05229862 | M18: 61.05229862 | N18: 61.05229862 | O18: 61.05229862
C19: cable type | D19: cable | E19: 0 | F19: =VLOOKUP($D19,specs!$K$5:$L$19,2)*IF($E$1="m",$D20,($D20*0.3048))/1000 -> 0 | G19: =VLOOKUP($D19,specs!$K$5:$L$19,2)*IF($E$1="m",$D20,($D20*0.3048))/1000 -> 0 | H19: =VLOOKUP($D19,specs!$K$5:$L$19,2)*IF($E$1="m",$D20,($D20*0.3048))/1000 -> 0 | I19: =VLOOKUP($D19,specs!$K$5:$L$19,2)*IF($E$1="m",$D20,($D20*0.3048))/1000 -> 0 | J19: =VLOOKUP($D19,specs!$K$5:$L$19,2)*IF($E$1="m",$D20,($D20*0.3048))/1000 -> 0 | K19: =VLOOKUP($D19,specs!$K$5:$L$19,2)*IF($E$1="m",$D20,($D20*0.3048))/1000 -> 0 | L19: =VLOOKUP($D19,specs!$K$5:$L$19,2)*IF($E$1="m",$D20,($D20*0.3048))/1000 -> 0 | M19: =VLOOKUP($D19,specs!$K$5:$L$19,2)*IF($E$1="m",$D20,($D20*0.3048))/1000 -> 0 | N19: =VLOOKUP($D19,specs!$K$5:$L$19,2)*IF($E$1="m",$D20,($D20*0.3048))/1000 -> 0 | O19: =VLOOKUP($D19,specs!$K$5:$L$19,2)*IF($E$1="m",$D20,($D20*0.3048))/1000 -> 0
C20: span length,m | D20: 0 | E20: 0 | F20: =VLOOKUP($D21,specs!$D$5:$H$17,4)/F21*1.03*$E21+F23 -> 0 | G20: =VLOOKUP($D21,specs!$D$5:$H$17,4)/G21*1.03*$E21+G23 -> 0 | H20: =VLOOKUP($D21,specs!$D$5:$H$17,4)/H21*1.03*$E21+H23 -> 0 | I20: =VLOOKUP($D21,specs!$D$5:$H$17,4)/I21*1.03*$E21+I23 -> 0 | J20: =VLOOKUP($D21,specs!$D$5:$H$17,4)/J21*1.03*$E21+J23 -> 0 | K20: =VLOOKUP($D21,specs!$D$5:$H$17,4)/K21*1.03*$E21+K23 -> 0 | L20: =VLOOKUP($D21,specs!$D$5:$H$17,4)/L21*1.03*$E21+L23 -> 0 | M20: =VLOOKUP($D21,specs!$D$5:$H$17,4)/M21*1.03*$E21+M23 -> 0 | N20: =VLOOKUP($D21,specs!$D$5:$H$17,4)/N21*1.03*$E21+N23 -> 0 | O20: =VLOOKUP($D21,specs!$D$5:$H$17,4)/O21*1.03*$E21+O23 -> 0
C21: amplifier | D21: load | E21: 0 | F21: =B2 -> 61.80213258 | G21: =F21-(F3-$B$2) -> 61.06137034 | H21: 61.0524097 | I21: 61.05229998 | J21: 61.05229864 | K21: 61.05229862 | L21: 61.05229862 | M21: 61.05229862 | N21: 61.05229862 | O21: 61.05229862
F22: =IF(F21<0,1,0) -> 0 | G22: =IF(G21<0,1,0) -> 0 | H22: 0 | I22: 0 | J22: 0 | K22: 0 | L22: 0 | M22: 0 | N22: 0 | O22: 0
C24: User added Branch
M27: =O21 -> 61.05229862
F34: Main Branch Net12

Sheet Net11 (hidden)
B1: =SUM(F22:O22) -> 0 | D1: =IF(O21<'AUX2'!B6,1,0) -> 0 | E1: =+'AUX2'!J5 -> m
B2: =+'AUX2'!M7 -> 61.80213258 | C2: U start, V | D2: =+O5*1 -> 1.005579499 | F2: 1 | G2: 2 | H2: 3 | I2: 4 | J2: 5 | K2: 6 | L2: 7 | M2: 8 | N2: 9 | O2: iteration10
E3: mult. | F3: =F6+F5*F4 -> 62.33757284 | G3: =G6+G5*G4 -> 61.80680394 | H3: 61.80217369 | I3: 61.80213294 | J3: 61.80213258 | K3: 61.80213258 | L3: 61.80213258 | M3: 61.80213258 | N3: 61.80213258 | O3: =O6+O5*O4 -> 61.80213258
C4: cable type | D4: QR540 | E4: 0 | F4: =VLOOKUP($D4,specs!$K$5:$L$19,2)*IF($E$1="m",$D5,($D5*0.3048))/1000 -> 0.14784 | G4: =VLOOKUP($D4,specs!$K$5:$L$19,2)*IF($E$1="m",$D5,($D5*0.3048))/1000 -> 0.14784 | H4: =VLOOKUP($D4,specs!$K$5:$L$19,2)*IF($E$1="m",$D5,($D5*0.3048))/1000 -> 0.14784 | I4: =VLOOKUP($D4,specs!$K$5:$L$19,2)*IF($E$1="m",$D5,($D5*0.3048))/1000 -> 0.14784 | J4: =VLOOKUP($D4,specs!$K$5:$L$19,2)*IF($E$1="m",$D5,($D5*0.3048))/1000 -> 0.14784 | K4: =VLOOKUP($D4,specs!$K$5:$L$19,2)*IF($E$1="m",$D5,($D5*0.3048))/1000 -> 0.14784 | L4: =VLOOKUP($D4,specs!$K$5:$L$19,2)*IF($E$1="m",$D5,($D5*0.3048))/1000 -> 0.14784 | M4: =VLOOKUP($D4,specs!$K$5:$L$19,2)*IF($E$1="m",$D5,($D5*0.3048))/1000 -> 0.14784 | N4: =VLOOKUP($D4,specs!$K$5:$L$19,2)*IF($E$1="m",$D5,($D5*0.3048))/1000 -> 0.14784 | O4: =VLOOKUP($D4,specs!$K$5:$L$19,2)*IF($E$1="m",$D5,($D5*0.3048))/1000 -> 0.14784
C5: span length,m | D5: 28 | E5: 0 | F5: =VLOOKUP($D6,specs!$D$5:$H$17,4)/F6*1.03*$E6+F8 -> 0.996845603 | G5: =VLOOKUP($D6,specs!$D$5:$H$17,4)/G6*1.03*$E6+G8 -> 1.005502636 | H5: =VLOOKUP($D6,specs!$D$5:$H$17,4)/H6*1.03*$E6+H8 -> 1.005578823 | I5: =VLOOKUP($D6,specs!$D$5:$H$17,4)/I6*1.03*$E6+I8 -> 1.005579494 | J5: =VLOOKUP($D6,specs!$D$5:$H$17,4)/J6*1.03*$E6+J8 -> 1.005579499 | K5: =VLOOKUP($D6,specs!$D$5:$H$17,4)/K6*1.03*$E6+K8 -> 1.005579499 | L5: =VLOOKUP($D6,specs!$D$5:$H$17,4)/L6*1.03*$E6+L8 -> 1.005579499 | M5: =VLOOKUP($D6,specs!$D$5:$H$17,4)/M6*1.03*$E6+M8 -> 1.005579499 | N5: =VLOOKUP($D6,specs!$D$5:$H$17,4)/N6*1.03*$E6+N8 -> 1.005579499 | O5: =VLOOKUP($D6,specs!$D$5:$H$17,4)/O6*1.03*$E6+O8 -> 1.005579499
C6: amplifier | D6: LEX | E6: 1 | F6: =F9+F8*F7 -> 62.19019919 | G6: =G9+G8*G7 -> 61.65815043 | H6: 61.65350892 | I6: 61.65346807 | J6: 61.65346771 | K6: 61.65346771 | L6: 61.65346771 | M6: 61.65346771 | N6: 61.65346771 | O6: =O9+O8*O7 -> 61.65346771
C7: cable type | D7: QR540 | E7: 0 | F7: =VLOOKUP($D7,specs!$K$5:$L$19,2)*IF($E$1="m",$D8,($D8*0.3048))/1000 -> 0.77616 | G7: =VLOOKUP($D7,specs!$K$5:$L$19,2)*IF($E$1="m",$D8,($D8*0.3048))/1000 -> 0.77616 | H7: =VLOOKUP($D7,specs!$K$5:$L$19,2)*IF($E$1="m",$D8,($D8*0.3048))/1000 -> 0.77616 | I7: =VLOOKUP($D7,specs!$K$5:$L$19,2)*IF($E$1="m",$D8,($D8*0.3048))/1000 -> 0.77616 | J7: =VLOOKUP($D7,specs!$K$5:$L$19,2)*IF($E$1="m",$D8,($D8*0.3048))/1000 -> 0.77616 | K7: =VLOOKUP($D7,specs!$K$5:$L$19,2)*IF($E$1="m",$D8,($D8*0.3048))/1000 -> 0.77616 | L7: =VLOOKUP($D7,specs!$K$5:$L$19,2)*IF($E$1="m",$D8,($D8*0.3048))/1000 -> 0.77616 | M7: =VLOOKUP($D7,specs!$K$5:$L$19,2)*IF($E$1="m",$D8,($D8*0.3048))/1000 -> 0.77616 | N7: =VLOOKUP($D7,specs!$K$5:$L$19,2)*IF($E$1="m",$D8,($D8*0.3048))/1000 -> 0.77616 | O7: =VLOOKUP($D7,specs!$K$5:$L$19,2)*IF($E$1="m",$D8,($D8*0.3048))/1000 -> 0.77616
C8: span length,m | D8: 147 | E8: 0 | F8: =VLOOKUP($D9,specs!$D$5:$H$17,4)/F9*1.03*$E9+F11 -> 0.4999827467 | G8: =VLOOKUP($D9,specs!$D$5:$H$17,4)/G9*1.03*$E9+G11 -> 0.504352346 | H8: =VLOOKUP($D9,specs!$D$5:$H$17,4)/H9*1.03*$E9+H11 -> 0.504390804 | I8: =VLOOKUP($D9,specs!$D$5:$H$17,4)/I9*1.03*$E9+I11 -> 0.5043911425 | J8: =VLOOKUP($D9,specs!$D$5:$H$17,4)/J9*1.03*$E9+J11 -> 0.5043911454 | K8: =VLOOKUP($D9,specs!$D$5:$H$17,4)/K9*1.03*$E9+K11 -> 0.5043911455 | L8: =VLOOKUP($D9,specs!$D$5:$H$17,4)/L9*1.03*$E9+L11 -> 0.5043911455 | M8: =VLOOKUP($D9,specs!$D$5:$H$17,4)/M9*1.03*$E9+M11 -> 0.5043911455 | N8: =VLOOKUP($D9,specs!$D$5:$H$17,4)/N9*1.03*$E9+N11 -> 0.5043911455 | O8: =VLOOKUP($D9,specs!$D$5:$H$17,4)/O9*1.03*$E9+O11 -> 0.5043911455
C9: amplifier | D9: LEX | E9: 1 | F9: =F12+F11*F10 -> 61.80213258 | G9: =G12+G11*G10 -> 61.26669232 | H9: 61.26202095 | I9: 61.26197984 | J9: 61.26197948 | K9: 61.26197947 | L9: 61.26197947 | M9: 61.26197947 | N9: 61.26197947 | O9: =O12+O11*O10 -> 61.26197947
C10: cable type | D10: cable | E10: 0 | F10: =VLOOKUP($D10,specs!$K$5:$L$19,2)*IF($E$1="m",$D11,($D11*0.3048))/1000 -> 0 | G10: =VLOOKUP($D10,specs!$K$5:$L$19,2)*IF($E$1="m",$D11,($D11*0.3048))/1000 -> 0 | H10: =VLOOKUP($D10,specs!$K$5:$L$19,2)*IF($E$1="m",$D11,($D11*0.3048))/1000 -> 0 | I10: =VLOOKUP($D10,specs!$K$5:$L$19,2)*IF($E$1="m",$D11,($D11*0.3048))/1000 -> 0 | J10: =VLOOKUP($D10,specs!$K$5:$L$19,2)*IF($E$1="m",$D11,($D11*0.3048))/1000 -> 0 | K10: =VLOOKUP($D10,specs!$K$5:$L$19,2)*IF($E$1="m",$D11,($D11*0.3048))/1000 -> 0 | L10: =VLOOKUP($D10,specs!$K$5:$L$19,2)*IF($E$1="m",$D11,($D11*0.3048))/1000 -> 0 | M10: =VLOOKUP($D10,specs!$K$5:$L$19,2)*IF($E$1="m",$D11,($D11*0.3048))/1000 -> 0 | N10: =VLOOKUP($D10,specs!$K$5:$L$19,2)*IF($E$1="m",$D11,($D11*0.3048))/1000 -> 0 | O10: =VLOOKUP($D10,specs!$K$5:$L$19,2)*IF($E$1="m",$D11,($D11*0.3048))/1000 -> 0
C11: span length,m | D11: 0 | E11: 0 | F11: =VLOOKUP($D12,specs!$D$5:$H$17,4)/F12*1.03*$E12+F14 -> 0 | G11: =VLOOKUP($D12,specs!$D$5:$H$17,4)/G12*1.03*$E12+G14 -> 0 | H11: =VLOOKUP($D12,specs!$D$5:$H$17,4)/H12*1.03*$E12+H14 -> 0 | I11: =VLOOKUP($D12,specs!$D$5:$H$17,4)/I12*1.03*$E12+I14 -> 0 | J11: =VLOOKUP($D12,specs!$D$5:$H$17,4)/J12*1.03*$E12+J14 -> 0 | K11: =VLOOKUP($D12,specs!$D$5:$H$17,4)/K12*1.03*$E12+K14 -> 0 | L11: =VLOOKUP($D12,specs!$D$5:$H$17,4)/L12*1.03*$E12+L14 -> 0 | M11: =VLOOKUP($D12,specs!$D$5:$H$17,4)/M12*1.03*$E12+M14 -> 0 | N11: =VLOOKUP($D12,specs!$D$5:$H$17,4)/N12*1.03*$E12+N14 -> 0 | O11: =VLOOKUP($D12,specs!$D$5:$H$17,4)/O12*1.03*$E12+O14 -> 0
C12: amplifier | D12: load | E12: 0 | F12: =F15+F14*F13 -> 61.80213258 | G12: =G15+G14*G13 -> 61.26669232 | H12: 61.26202095 | I12: 61.26197984 | J12: 61.26197948 | K12: 61.26197947 | L12: 61.26197947 | M12: 61.26197947 | N12: 61.26197947 | O12: =O15+O14*O13 -> 61.26197947
C13: cable type | D13: cable | E13: 0 | F13: =VLOOKUP($D13,specs!$K$5:$L$19,2)*IF($E$1="m",$D14,($D14*0.3048))/1000 -> 0 | G13: =VLOOKUP($D13,specs!$K$5:$L$19,2)*IF($E$1="m",$D14,($D14*0.3048))/1000 -> 0 | H13: =VLOOKUP($D13,specs!$K$5:$L$19,2)*IF($E$1="m",$D14,($D14*0.3048))/1000 -> 0 | I13: =VLOOKUP($D13,specs!$K$5:$L$19,2)*IF($E$1="m",$D14,($D14*0.3048))/1000 -> 0 | J13: =VLOOKUP($D13,specs!$K$5:$L$19,2)*IF($E$1="m",$D14,($D14*0.3048))/1000 -> 0 | K13: =VLOOKUP($D13,specs!$K$5:$L$19,2)*IF($E$1="m",$D14,($D14*0.3048))/1000 -> 0 | L13: =VLOOKUP($D13,specs!$K$5:$L$19,2)*IF($E$1="m",$D14,($D14*0.3048))/1000 -> 0 | M13: =VLOOKUP($D13,specs!$K$5:$L$19,2)*IF($E$1="m",$D14,($D14*0.3048))/1000 -> 0 | N13: =VLOOKUP($D13,specs!$K$5:$L$19,2)*IF($E$1="m",$D14,($D14*0.3048))/1000 -> 0 | O13: =VLOOKUP($D13,specs!$K$5:$L$19,2)*IF($E$1="m",$D14,($D14*0.3048))/1000 -> 0
C14: span length,m | D14: 0 | E14: 0 | F14: =VLOOKUP($D15,specs!$D$5:$H$17,4)/F15*1.03*$E15+F17 -> 0 | G14: =VLOOKUP($D15,specs!$D$5:$H$17,4)/G15*1.03*$E15+G17 -> 0 | H14: =VLOOKUP($D15,specs!$D$5:$H$17,4)/H15*1.03*$E15+H17 -> 0 | I14: =VLOOKUP($D15,specs!$D$5:$H$17,4)/I15*1.03*$E15+I17 -> 0 | J14: =VLOOKUP($D15,specs!$D$5:$H$17,4)/J15*1.03*$E15+J17 -> 0 | K14: =VLOOKUP($D15,specs!$D$5:$H$17,4)/K15*1.03*$E15+K17 -> 0 | L14: =VLOOKUP($D15,specs!$D$5:$H$17,4)/L15*1.03*$E15+L17 -> 0 | M14: =VLOOKUP($D15,specs!$D$5:$H$17,4)/M15*1.03*$E15+M17 -> 0 | N14: =VLOOKUP($D15,specs!$D$5:$H$17,4)/N15*1.03*$E15+N17 -> 0 | O14: =VLOOKUP($D15,specs!$D$5:$H$17,4)/O15*1.03*$E15+O17 -> 0
C15: amplifier | D15: load | E15: 0 | F15: =F18+F17*F16 -> 61.80213258 | G15: =G18+G17*G16 -> 61.26669232 | H15: 61.26202095 | I15: 61.26197984 | J15: 61.26197948 | K15: 61.26197947 | L15: 61.26197947 | M15: 61.26197947 | N15: 61.26197947 | O15: =O18+O17*O16 -> 61.26197947
C16: cable type | D16: cable | E16: 0 | F16: =VLOOKUP($D16,specs!$K$5:$L$19,2)*IF($E$1="m",$D17,($D17*0.3048))/1000 -> 0 | G16: =VLOOKUP($D16,specs!$K$5:$L$19,2)*IF($E$1="m",$D17,($D17*0.3048))/1000 -> 0 | H16: =VLOOKUP($D16,specs!$K$5:$L$19,2)*IF($E$1="m",$D17,($D17*0.3048))/1000 -> 0 | I16: =VLOOKUP($D16,specs!$K$5:$L$19,2)*IF($E$1="m",$D17,($D17*0.3048))/1000 -> 0 | J16: =VLOOKUP($D16,specs!$K$5:$L$19,2)*IF($E$1="m",$D17,($D17*0.3048))/1000 -> 0 | K16: =VLOOKUP($D16,specs!$K$5:$L$19,2)*IF($E$1="m",$D17,($D17*0.3048))/1000 -> 0 | L16: =VLOOKUP($D16,specs!$K$5:$L$19,2)*IF($E$1="m",$D17,($D17*0.3048))/1000 -> 0 | M16: =VLOOKUP($D16,specs!$K$5:$L$19,2)*IF($E$1="m",$D17,($D17*0.3048))/1000 -> 0 | N16: =VLOOKUP($D16,specs!$K$5:$L$19,2)*IF($E$1="m",$D17,($D17*0.3048))/1000 -> 0 | O16: =VLOOKUP($D16,specs!$K$5:$L$19,2)*IF($E$1="m",$D17,($D17*0.3048))/1000 -> 0
C17: span length,m | D17: 0 | E17: 0 | F17: =VLOOKUP($D18,specs!$D$5:$H$17,4)/F18*1.03*$E18+F20 -> 0 | G17: =VLOOKUP($D18,specs!$D$5:$H$17,4)/G18*1.03*$E18+G20 -> 0 | H17: =VLOOKUP($D18,specs!$D$5:$H$17,4)/H18*1.03*$E18+H20 -> 0 | I17: =VLOOKUP($D18,specs!$D$5:$H$17,4)/I18*1.03*$E18+I20 -> 0 | J17: =VLOOKUP($D18,specs!$D$5:$H$17,4)/J18*1.03*$E18+J20 -> 0 | K17: =VLOOKUP($D18,specs!$D$5:$H$17,4)/K18*1.03*$E18+K20 -> 0 | L17: =VLOOKUP($D18,specs!$D$5:$H$17,4)/L18*1.03*$E18+L20 -> 0 | M17: =VLOOKUP($D18,specs!$D$5:$H$17,4)/M18*1.03*$E18+M20 -> 0 | N17: =VLOOKUP($D18,specs!$D$5:$H$17,4)/N18*1.03*$E18+N20 -> 0 | O17: =VLOOKUP($D18,specs!$D$5:$H$17,4)/O18*1.03*$E18+O20 -> 0
C18: amplifier | D18: load | E18: 0 | F18: =F21+F20*F19 -> 61.80213258 | G18: =G21+G20*G19 -> 61.26669232 | H18: 61.26202095 | I18: 61.26197984 | J18: 61.26197948 | K18: 61.26197947 | L18: 61.26197947 | M18: 61.26197947 | N18: 61.26197947 | O18: =O21+O20*O19 -> 61.26197947
C19: cable type | D19: cable | E19: 0 | F19: =VLOOKUP($D19,specs!$K$5:$L$19,2)*IF($E$1="m",$D20,($D20*0.3048))/1000 -> 0 | G19: =VLOOKUP($D19,specs!$K$5:$L$19,2)*IF($E$1="m",$D20,($D20*0.3048))/1000 -> 0 | H19: =VLOOKUP($D19,specs!$K$5:$L$19,2)*IF($E$1="m",$D20,($D20*0.3048))/1000 -> 0 | I19: =VLOOKUP($D19,specs!$K$5:$L$19,2)*IF($E$1="m",$D20,($D20*0.3048))/1000 -> 0 | J19: =VLOOKUP($D19,specs!$K$5:$L$19,2)*IF($E$1="m",$D20,($D20*0.3048))/1000 -> 0 | K19: =VLOOKUP($D19,specs!$K$5:$L$19,2)*IF($E$1="m",$D20,($D20*0.3048))/1000 -> 0 | L19: =VLOOKUP($D19,specs!$K$5:$L$19,2)*IF($E$1="m",$D20,($D20*0.3048))/1000 -> 0 | M19: =VLOOKUP($D19,specs!$K$5:$L$19,2)*IF($E$1="m",$D20,($D20*0.3048))/1000 -> 0 | N19: =VLOOKUP($D19,specs!$K$5:$L$19,2)*IF($E$1="m",$D20,($D20*0.3048))/1000 -> 0 | O19: =VLOOKUP($D19,specs!$K$5:$L$19,2)*IF($E$1="m",$D20,($D20*0.3048))/1000 -> 0
C20: span length,m | D20: 0 | E20: 0 | F20: =VLOOKUP($D21,specs!$D$5:$H$17,4)/F21*1.03*$E21+F23 -> 0 | G20: =VLOOKUP($D21,specs!$D$5:$H$17,4)/G21*1.03*$E21+G23 -> 0 | H20: =VLOOKUP($D21,specs!$D$5:$H$17,4)/H21*1.03*$E21+H23 -> 0 | I20: =VLOOKUP($D21,specs!$D$5:$H$17,4)/I21*1.03*$E21+I23 -> 0 | J20: =VLOOKUP($D21,specs!$D$5:$H$17,4)/J21*1.03*$E21+J23 -> 0 | K20: =VLOOKUP($D21,specs!$D$5:$H$17,4)/K21*1.03*$E21+K23 -> 0 | L20: =VLOOKUP($D21,specs!$D$5:$H$17,4)/L21*1.03*$E21+L23 -> 0 | M20: =VLOOKUP($D21,specs!$D$5:$H$17,4)/M21*1.03*$E21+M23 -> 0 | N20: =VLOOKUP($D21,specs!$D$5:$H$17,4)/N21*1.03*$E21+N23 -> 0 | O20: =VLOOKUP($D21,specs!$D$5:$H$17,4)/O21*1.03*$E21+O23 -> 0
C21: amplifier | D21: load | E21: 0 | F21: =B2 -> 61.80213258 | G21: =F21-(F3-$B$2) -> 61.26669232 | H21: 61.26202095 | I21: 61.26197984 | J21: 61.26197948 | K21: 61.26197947 | L21: 61.26197947 | M21: 61.26197947 | N21: 61.26197947 | O21: 61.26197947
F22: =IF(F21<0,1,0) -> 0 | G22: =IF(G21<0,1,0) -> 0 | H22: 0 | I22: 0 | J22: 0 | K22: 0 | L22: 0 | M22: 0 | N22: 0 | O22: 0
C24: User added Branch
M27: =O21 -> 61.26197947
F34: Main Branch Net11

Sheet AUX (hidden)
D2: R,Ohm | H2: Vdrop,V
B3: length,m | C3: I,A | D3: 540 | E3: 860 | F3: 750 | G3: 3x10 | H3: 540 | I3: 860 | J3: 750 | K3: 3x10 | L3: amp type | M3: Inom,A | N3: Vnom,V | O3: Pnom,W | P3: factor_i | Q3: cable | R3: loop_res | AA3: LIST
A4: 1 | D4: =B4*$R$4 -> 0 | E4: =B4*$R$5 -> 0 | F4: =B4*$R$6 -> 0 | G4: =+B4*$R$7 -> 0 | H4: =$C4*D4 -> 0 | I4: =$C4*E4 -> 0 | J4: =$C4*F4 -> 0 | K4: =$C4*G4 -> 0 | L4: HLN | M4: 1.4 | N4: 60 | O4: 84 | P4: =M4/(O4/N4) -> 1 | Q4: QR540 | R4: =S4/1000 -> 0.00528 | S4: 5.28 | T4: C500 | U4: =V4/1000 -> 0.00564 | V4: 5.64 | AA4: Net11
A5: 2 | D5: 0 | E5: 0 | F5: 0 | G5: =+B5*$R$7 -> 0 | H5: =$C5*D5 -> 0 | I5: =$C5*E5 -> 0 | J5: =$C5*F5 -> 0 | K5: =$C5*G5 -> 0 | L5: TNA | M5: 1 | N5: 60 | O5: 60 | P5: =M5/(O5/N5) -> 1 | Q5: QR860 | R5: =S5/1000 -> 0.00237 | S5: 2.37 | T5: C625 | U5: =V5/1000 -> 0.00361 | V5: 3.61 | AA5: Net12
A6: 3 | D6: 0 | E6: 0 | F6: 0 | G6: =+B6*$R$7 -> 0 | H6: 0 | I6: 0 | J6: 0 | K6: 0 | L6: LEX | M6: 0.5 | N6: 60 | O6: 36 | P6: =M6/(O6/N6) -> 0.8333333333 | Q6: C750 | R6: =S6/1000 -> 0.00249 | S6: 2.49 | AA6: Net21
A7: 4 | D7: 0 | E7: 0 | F7: 0 | G7: 0 | H7: 0 | I7: 0 | J7: 0 | K7: 0 | L7: DBLE | M7: 0.6 | N7: 60 | O7: 24 | P7: =M7/(O7/N7) -> 1.5 | Q7: 3x10 | R7: =+S7/1000 -> 0.0025 | S7: 2.5 | AA7: Net22
A8: 5 | D8: 0 | E8: 0 | F8: 0 | G8: 0 | H8: =$C8*D8 -> 0 | I8: =$C8*E8 -> 0 | J8: 0 | K8: 0 | L8: GNA | M8: 1 | N8: 60 | O8: 60 | P8: =M8/(O8/N8) -> 1 | Q8: C500 | R8: =S8/1000 -> 0.00564 | S8: 5.64 | AA8: Net31
A9: 6 | D9: 0 | E9: 0 | F9: 0 | G9: 0 | H9: =$C9*D9 -> 0 | I9: =$C9*E9 -> 0 | J9: 0 | K9: 0 | Q9: C625 | R9: 0.00361 | S9: 3.61 | AA9: Net32
A10: 7 | D10: 0 | E10: 0 | F10: 0 | G10: 0 | H10: 0 | I10: 0 | J10: 0 | K10: 0 | Q10: 2x10 | R10: 0.00366 | S10: 3.66 | AA10: Net41
A11: 8 | D11: 0 | E11: 0 | F11: 0 | G11: 0 | H11: 0 | I11: 0 | J11: 0 | K11: 0 | Q11: 2x6 | R11: 0.006 | S11: 6 | AA11: Net42
A12: 9 | D12: 0 | E12: 0 | F12: 0 | G12: 0 | H12: 0 | I12: 0 | J12: 0 | K12: 0 | Q12: 4x10 | R12: 0.00183 | S12: 1.83
A13: 10 | D13: 0 | E13: 0 | F13: 0 | G13: 0 | H13: 0 | I13: 0 | J13: 0 | K13: 0 | Q13: 4x6 | R13: 0.003 | S13: 3

Sheet specs
D3: 1 | E3: 2 | F3: 3 | G3: 4 | H3: 5 | K3: 1 | L3: 2
C4: amp type | D4: sorted | E4: Inom,A | F4: Vnom,V | G4: Pnom,W | I4: original | J4: cable | K4: sorted | L4: loop_res | O4: original
C5: load | D5: DBLE | F5: 60 | G5: 30 | H5: 1 | I5: 30 | J5: cable | K5: 2x10 | L5: 3.66 | M5: cable | N5: 1 | O5: 3.66
C6: HLN | D6: future1 | F6: 60 | G6: 0 | H6: 1 | I6: 0 | J6: QR860 | K6: 2x6 | L6: 6 | M6: QR860 | N6: 2 | O6: 6
C7: TNA | D7: future2 | F7: 60 | G7: 0 | H7: 1 | I7: 0 | J7: C750 | K7: 3x10 | L7: 2.5 | M7: C750 | N7: 3 | O7: 2.5
C8: GNA | D8: future3 | F8: 60 | G8: 0 | H8: 1 | I8: 0 | J8: QR715 | K8: 4x10 | L8: 1.83 | M8: QR715 | N8: 4 | O8: 1.83
C9: LEX | D9: future4 | F9: 60 | G9: 0 | H9: 1 | I9: 0 | J9: C625 | K9: 4x6 | L9: 3 | M9: C625 | N9: 5 | O9: 3
C10: DBLE | D10: future5 | F10: 60 | G10: 0 | H10: 1 | I10: 0 | J10: C565 | K10: C500 | L10: 5.64 | M10: C565 | N10: 6 | O10: 5.64
C11: future1 | D11: future6 | F11: 60 | G11: 0 | H11: 1 | I11: 0 | J11: QR540 | K11: C565 | L11: 4.26 | M11: QR540 | N11: 7 | O11: 4.26
C12: future2 | D12: future7 | F12: 60 | G12: 0 | H12: 1 | I12: 0 | J12: C500 | K12: C625 | L12: 3.61 | M12: C500 | N12: 8 | O12: 3.61
C13: future3 | D13: GNA | F13: 60 | G13: 48 | H13: 1 | I13: 48 | J13: QR1125 | K13: C750 | L13: 2.49 | M13: QR1125 | N13: 9 | O13: 2.49
C14: future4 | D14: HLN | F14: 60 | G14: 84 | H14: 1 | I14: 84 | J14: 3x10 | K14: cable | L14: 0 | M14: 2x10 | N14: 10 | O14: 0
C15: future5 | D15: LEX | F15: 60 | G15: 30 | H15: 1 | I15: 24 | J15: 4x10 | K15: QR1125 | L15: 1.3 | M15: 2x6 | N15: 11 | O15: 1.3
C16: future6 | D16: load | F16: 1 | G16: 0 | H16: 0 | I16: 0 | J16: 2x10 | K16: QR540 | L16: 5.28 | M16: 3x10 | N16: 12 | O16: 5.28
C17: future7 | D17: TNA | F17: 60 | G17: 52 | H17: 1 | I17: 52 | J17: 2x6 | K17: QR715 | L17: 3.27 | M17: 4x10 | N17: 13 | O17: 3.27
J18: 4x6 | K18: QR860 | L18: 2.37 | M18: 4x6 | N18: 14 | O18: 2.37
J19: type | K19: spare | L19: 0 | O19: 0
